Workbook

Sheet Inicio P
A23: Descargue la versión Kindle
K32: Miguel Cervantes Jiménez

Sheet Sustitutos P (hidden)
A1: CURVAS DE INDIFERENCIA
A3: SUSTITUTOS PERFECTOS
B10: Nivel | C10: a | D10: x1 | E10: b | F10: x2
B11: 20.0 | C11: 2.0 | D11: 40.0 | E11: 1.0 | F11: ='Oculto P'!C30 -> 0.0
B12: Inserte los valores correspondientes de la curva u1 (original)
B14: Cambio de nivel
B15: 10.0
B16: Inserte el nivel de las curvas de indiferencia en rojo y rosa
B19: Relación marginal de sustitución
B20: ='Oculto P'!C28 -> -0.5

Sheet Complementarios P (hidden)
A1: CURVAS DE INDIFERENCIA
A3: COMPLEMENTOS PERFECTOS
C7: Canasta | D7: x1/a | E7: x2/b
D8: ='Oculto P'!S35 -> 4.0 | E8: ='Oculto P'!T35 -> 4.0
B10: Mínimo | C10: a | D10: x1 | E10: b | F10: x2
B11: ='Oculto P'!R38 -> 4.0 | C11: 1.0 | D11: 4.0 | E11: 4.0 | F11: 16.0 | H11: 2
B12: Inserte los valores correspondientes a la curva u1 (original) | D12: x1/a | E12: x2/b
D13: ='Oculto P'!S35 -> 4.0 | E13: ='Oculto P'!T35 -> 4.0
B16: Cambio de nivel
B17: 1.0
B18: Inserte el nivel de las curvas de indiferencia en rosa y rojo
B21: Relación marginal de sustitución
B22: UMgx1 | C22: Cero
B23: UMgx2 | C23: Tiende a infinito
B24: RMgS | C24: Indeterminada (cero)

Sheet Neutrales P (hidden)
A1: CURVAS DE INDIFERENCIA
A3: NEUTRALES
J6: ='Oculto P'!AL23 -> 20
B9: Nivel | C9: x1 | D9: x2
B10: =C10 -> 10.0 | C10: 10.0 | D10: 14.0
C11: Inserte los valores correspondientes de la curva u1 (original)
B13: Cambio de nivel
B14: 5.0
B15: Inserte el nivel de las curvas de indiferencia en rosa y rojo
B18: Relación marginal de sustitución
B19: Tiende a infinito

Sheet Cuasilineales P (hidden)
A1: CURVAS DE INDIFERENCIA
A3: CUASILINEALES
B11: Nivel | C11: x1 | D11: x2
B12: 5.0 | C12: 2.0 | D12: ='Oculto P'!CF27 -> 4.7
B13: Inserte los valores correspondientes de la curva u1 (original)
B15: Cambio de nivel
B16: 2.0
B17: Inserte el nivel de las curvas de indiferencia en rosa y rojo
B19: Relación marginal de sustitución
B20: ='Oculto P'!CE29 -> -0.5

Sheet Males P (hidden)
A1: CURVAS DE INDIFERENCIA
A3: MALES
B11: Nivel | C11: a | D11: x1 | E11: b | F11: x2
B12: 50.0 | C12: 1.0 | D12: 60.0 | E12: 2.0 | F12: ='Oculto P'!BA23 -> 20.0
B13: Inserte los valores correspondientes de la curva u1 (original)
B15: Cambio de nivel
B16: 30.0
B17: Inserte el nivel de las curvas de indiferencia en rosa y rojo
B19: Relación marginal de sustitución
B20: ='Oculto P'!AU29 -> 2.0

Sheet Regulares P (hidden)
A1: CURVAS DE INDIFERENCIA
A3: REGULARES
B11: Nivel | C11: a | D11: x1 | E11: b | F11: x2
B12: 100.0 | C12: 1.0 | D12: 15.0 | E12: 1.0 | F12: ='Oculto P'!BH26 -> 6.7
B13: Inserte los valores correspondientes de la curva u1 (original)
B15: Cambio de Nivel
B16: 50.0
B17: Inserte el nivel de las curvas de indiferencia en rosa y rojo
B19: Relación Marginal de Sustitución
B20: ='Oculto P'!BF28 -> -0.4

Sheet CES P (hidden)
A1: CURVAS DE INDIFERENCIA
A3: FUNCIÓN POLINOMIAL
B10: Nivel | C10: x1 | D10: a | E10: x2 | F10: b
B11: 42.0 | C11: 1.5 | D11: 2.0 | E11: ='Oculto P'!CR29 -> 8.0 | F11: 4.0
B12: Inserte los valores correspondientes de la curva u1 (original)
B14: Cambio de nivel
B15: 6.0
B16: Inserte el nivel de las curvas de indiferencia en rojo y rosa
B19: Relación marginal de sustitución
B20: ='Oculto P'!CR33 -> -3.4

Sheet Cobb-DouglasD1 P (hidden)
A1: CURVAS DE INDIFERENCIA
A3: COBB-DOUGLAS
B4: (suma de exponentes diferente a uno)
B12: Nivel | C12: x1 | D12: a | E12: x2 | F12: b
B13: 100.0 | C13: 20.0 | D13: 1.0 | E13: ='Oculto P'!DI26 -> 5.0 | F13: 1.0
B14: Inserte los valores correspondientes de la curva u1 (original)
B16: Cambio de nivel
B17: 20.0
B18: Inserte el nivel de las curvas de indiferencia en rosa y rojo
B20: Relación marginal de sustitución
B21: ='Oculto P'!DF29 -> -0.25

Sheet Cobb-Douglas P (hidden)
A1: CURVAS DE INDIFERENCIA
A3: COBB-DOUGLAS
B12: Nivel | C12: x1 | D12: a | E12: x2 | F12: 1-a
B13: 100.0 | C13: 200.0 | D13: 0.5 | E13: ='Oculto P'!BX26 -> 50.0 | F13: =1-D13 -> 0.5
B14: Inserte los valores correspondientes de la curva u1 (original)
B16: Cambio de nivel
B17: 25.0
B18: Inserte el nivel de las curvas de indiferencia en rosa y rojo
B20: Relación marginal de sustitución
B21: ='Oculto P'!BU29 -> -0.3

Sheet CDR3 P (hidden)
B1: CURVAS DE INDIFERENCIA | M1: 1
B3: COBB-DOUGLAS EN R3
B6: Utilidad | C6: ='Oculto P'!GB2 -> 20.0
B7: X1 | C7: 20.0
B8: a | C8: 0.5
B9: X2 | C9: 20.0
B10: 1-a | C10: ='Oculto P'!GB7 -> 0.5
B11: Inserte los valores correspondientes
B12: UMg1 | C12: ='Oculto P'!GB10 -> 0.5
B13: UMg2 | C13: ='Oculto P'!GB11 -> 0.5
B14: RMgS | C14: ='Oculto P'!GB12 -> -1.0
B28: Títulos
B29: Resultados
B30: Insertar Datos

Sheet Oculto P (hidden)
A1: SUSTITUTOS PERFECTOS | N1: COMPLEMENTARIOS PERFECTOS | R1: media | V1: alta | Z1: baja | AJ1: NEUTRALES | AS1: MALES | AV1: =AV28/AV27 -> 25.00 | AW1: =((AV28+'Males P'!$B$16)/AV27) -> 40.00 | AX1: =(AV28-'Males P'!$B$16)/AV27 -> 10.00 | BD1: REGULARES | BS1: COBB-DOUGLAS | CD1: CUASILINEALES | CP1: CES | DD1: COBB-DOUGLAS D1 | DO1: STONE-GEARY | GA1: COBB-DOUGLAS R3
A2: Unidades | B2: ponderador | C2: x1 | D2: x2 | E2: x1 | F2: x2 | G2: x1 | H2: x2 | I2: x1line | K2: x2line | N2: Unidades | O2: ponderador | P2: x1 | Q2: x1f | R2: x2 | S2: x2f | T2: x1 | U2: x1f | V2: x2 | W2: x2f | X2: x1 | Y2: x1f | Z2: x2 | AA2: x2f | AB2: 20 | AE2: x1line | AG2: x2line | AJ2: Unidades | AK2: ponderador | AL2: x1 | AM2: x1f | AN2: x1f | AO2: x1f | AP2: x2line | AS2: Unidades | AT2: ponderador | AU2: x1 | AV2: X2F | AW2: X2F | AX2: X2F | AY2: x1line | BA2: x2line | BD2: Unidades | BE2: ponderador | BF2: x1 | BG2: X2F1 | BH2: X2F2 | BI2: X2F3 | BJ2: 6.0 | BP2: 21.0 | BS2: Unidades | BT2: ponderador | BU2: x1 | BV2: X2F1 | BW2: X2F1 | BX2: X2F1 | BY2: X1 Line | CA2: X2 Line | CD2: Unidades | CE2: ponderador | CF2: x1 | CG2: X2F1 | CH2: X2F1 | CI2: X2F1 | CJ2: =1/20 -> 0.05 | CP2: Unidades | CQ2: ponderador | CR2: x1 | CS2: x2 | CT2: x1 | CU2: x2 | CV2: x1 | CW2: x2 | CX2: x1line | CZ2: x2line | DD2: Unidades | DE2: ponderador | DF2: x1 | DG2: X2F1 | DH2: X2F1 | DI2: X2F1 | DJ2: X1 Line | DL2: X2 Line | DO2: Unidades | DP2: ponderador | DQ2: x1 | DR2: X2F1 | DS2: X2F1 | DT2: X2F1 | DU2: X1 Line | DW2: X2 Line | DY2: Ponderador | DZ2: cota s1 | EB2: cota s2 | GA2: Utilidad | GB2: =GB3*GB4^GB5*GB6^GB7 -> 20.0 | GG2: =HA3 -> 0.05 | GH2: =GG2+$HA$3 -> 0.10 | GI2: =GH2+$HA$3 -> 0.15 | GJ2: 0.20 | GK2: 0.25 | GL2: 0.30 | GM2: 0.35 | GN2: 0.40 | GO2: 0.45 | GP2: 0.50 | GQ2: 0.55 | GR2: 0.60 | GS2: 0.65 | GT2: 0.70 | GU2: 0.75 | GV2: 0.80 | GW2: 0.85 | GX2: 0.90 | GY2: 0.95 | GZ2: 1.00
A3: 1 | B3: 0 | C3: =$C$33*$B$33*B3 -> 0 | D3: =('Sustitutos P'!$B$11*'Oculto P'!$C$27)-(('Oculto P'!$C$27/'Oculto P'!$C$26)*'Oculto P'!C3) -> 20.00 | E3: =$C$33*($B$33+$B$37)*B3 -> 0 | F3: =(('Sustitutos P'!$B$11+'Sustitutos P'!$B$15)*'Oculto P'!$C$27)-(('Oculto P'!$C$27/'Oculto P'!$C$26)*'Oculto P'!E3) -> 30.00 | G3: =$C$33*($B$33-$B$37)*B3 -> 0 | H3: =(('Sustitutos P'!$B$11-'Sustitutos P'!$B$15)*'Oculto P'!$C$27)-(('Oculto P'!$C$27/'Oculto P'!$C$26)*'Oculto P'!G3) -> 10.00 | I3: ='Sustitutos P'!$D$11 -> 40.00 | J3: =K3*B3 -> 0.00 | K3: ='Sustitutos P'!$F$11 -> 0 | L3: =I3*B3 -> 0 | N3: 1 | O3: 1.00 | P3: =$S$38*O3 -> 4.00 | Q3: =$T$38 -> 16.00 | R3: =$S$38 -> 4.00 | S3: =$T$38*O3 -> 16.00 | T3: =$S$44*O3 -> 5.00 | U3: =$T$44 -> 20.00 | V3: =$S$44 -> 5.00 | W3: =$T$44*O3 -> 20.00 | X3: =$S$45*O3 -> 3.00 | Y3: =$T$45 -> 12.00 | Z3: =$S$45 -> 3.00 | AA3: =$T$45*O3 -> 12.00 | AC3: 0 | AD3: 1 | AE3: =$T$38*AC3 -> 0 | AF3: =$S$38 -> 4.0 | AG3: =AD3*$S$38 -> 4.0 | AH3: =$T$38 -> 16.0 | AJ3: 1 | AK3: 0 | AL3: =AM3*AK3 -> 0 | AM3: ='Neutrales P'!$C$10 -> 10.00 | AN3: ='Neutrales P'!$C$10+'Neutrales P'!$B$14 -> 15.00 | AO3: ='Neutrales P'!$C$10-'Neutrales P'!$B$14 -> 5.00 | AP3: =AM3*AC3 -> 0 | AQ3: ='Neutrales P'!$D$10 -> 14.00 | AS3: 1 | AT3: 0 | AU3: =($AV$24)*AT3 -> 0 | AV3: =((-1)*($AV$28*$AV$27))+(($AV$27/$AV$26)*AU3) -> (100.00) | AW3: =((-1)*(($AV$28+'Males P'!$B$16)*$AV$27))+(($AV$27/$AV$26)*AU3) -> -160.00 | AX3: =((-1)*(($AV$28-'Males P'!$B$16)*$AV$27))+(($AV$27/$AV$26)*AU3) -> (40.00) | AY3: =$AV$24 -> 60.00 | AZ3: =AY3*($AT3/2) -> 0 | BA3: =(-1*($AV$28*$AV$27))+(($AV$27/$AV$26)*AY3) -> 20.00 | BB3: =BA3*($AT3/2) -> 0 | BD3: 2 | BE3: 1.00 | BF3: =$BF$26*BK3 -> 2.50 | BG3: =$BF$24/($BF$25*$BH$25*BF3) -> 40.00 | BH3: =($BF$24+$BH$24)/($BF$25*$BH$25*BF3) -> 60.00 | BI3: =($BF$24-$BH$24)/($BF$25*$BH$25*BF3) -> 20.00 | BJ3: =1/$BJ$2 -> 0.2 | BK3: =BJ3 -> 0.2 | BL3: =$BF$26 -> 15.0 | BM3: =BL3*BQ3 -> 0 | BN3: =$BH$26 -> 6.7 | BO3: =BN3*BQ3 -> 0 | BQ3: 0 | BS3: 5 | BT3: =BS3/$BS$13 -> 0.45 | BU3: =BV$26*BT3 -> 90.91 | BV3: =((BX$28/((BU3^(BV$27)))))^(1/BX$27) -> 110.00 | BW3: =(((BX$28+BX$29)/((BU3^(BV$27)))))^(1/BX$27) -> 171.88 | BX3: =(((BX$28-BX$29)/((BU3^(BV$27)))))^(1/BX$27) -> 61.88 | BY3: =BV$26 -> 200.00 | BZ3: =BY3*BQ3 -> 0 | CA3: =BX$26 -> 50.00 | CB3: =CA3*BQ3 -> 0 | CD3: 2 | CE3: 1.00 | CF3: 0 | CG3: =$CF$24-(LOG(CF3)) ->  | CH3: 625.00 | CI3: 225.00 | CJ3: =CJ2 -> 0.05 | CK3: =$CF$26 -> 2 | CL3: =CM3*CJ3 -> 0.23 | CM3: =$CF$27 -> 4.70 | CN3: =CK3*CJ3 -> 0.1 | CP3: 1 | CQ3: =CQ4-0.1 -> 0.00 | CR3: =CQ3*$CR$28 -> 0.00 | CS3: =($CR$30+(($CR$26*$CR$27)*-1)+(($CR$27*CR3)*-1))/($CR$26+CR3) -> 17.00 | CT3: =CR3 -> 0.00 | CU3: =(($CR$30+$CR$31)+(($CR$26*$CR$27)*-1)+(($CR$27*CT3)*-1))/($CR$26+CT3) -> 20.00 | CV3: =CR3 -> 0.00 | CW3: =(($CR$30-$CR$31)+(($CR$26*$CR$27)*-1)+(($CR$27*CV3)*-1))/($CR$26+CV3) -> 14.00 | CX3: =$CR$28 -> 1.50 | CY3: =CZ3*DB3 -> 0.00 | CZ3: =$CR$29 -> 8.00 | DA3: =CX3*DB3 -> 0 | DB3: 0 | DD3: 5 | DE3: =DD3/$BS$13 -> 0.45 | DF3: =DG$26*DE3 -> 9.09 | DG3: =((DI$28/((DF3^(DG$27)))))^(1/DI$27) -> 11.00 | DH3: =(((DI$28+DI$29)/((DF3^(DG$27)))))^(1/DI$27) -> 13.20 | DI3: =(((DI$28-DI$29)/((DF3^(DG$27)))))^(1/DI$27) -> 8.80 | DJ3: =DG$26 -> 20.00 | DK3: =DJ3*DB3 -> 0 | DL3: =DI$26 -> 5.00 | DM3: =DL3*DB3 -> 0 | DO3: 8 | DP3: =DO3/$BS$13 -> 0.73 | DQ3: =DR$26*DP3 -> 36.36 | DR3: =((DT$28/(($DQ3+DR$28)^(DR$27)))^(1/DT$27))-$DR$29 -> 32.77 | DS3: =(((DT$28-DT$29)/(($DQ3+DR$28)^(DR$27)))^(1/DT$27))-$DR$29 -> 21.60 | DT3: =(((DT$28+DT$29)/(($DQ3+DR$28)^(DR$27)))^(1/DT$27))-$DR$29 -> 46.71 | DU3: =DR$26 -> 50.00 | DV3: =DU3*DY3 -> 0 | DW3: =DT$26 -> 29.86 | DX3: =DW3*DY3 -> 0 | DY3: 0 | DZ3: =DR$28*-1 -> 10.00 | EA3: =DQ$23*DY3 -> 0 | EB3: =DR$29*-1 -> 15.00 | EC3: =MAX(DR$3:DT$3)*DY3 -> 0 | GA3: A | GB3: 1.0 | GF3: 0 | GG3: =$GB$4*GG2 -> 1.00 | GH3: =$GB$4*GH2 -> 2.00 | GI3: 3.00 | GJ3: 4.00 | GK3: 5.00 | GL3: 6.00 | GM3: 7.00 | GN3: 8.00 | GO3: 9.00 | GP3: 10.00 | GQ3: 11.00 | GR3: 12.00 | GS3: 13.00 | GT3: 14.00 | GU3: 15.00 | GV3: 16.00 | GW3: 17.00 | GX3: 18.00 | GY3: 19.00 | GZ3: 20.00 | HA3: =1/20 -> 0.05
A4: 2 | B4: 0.05 | C4: =$C$33*$B$33*B4 -> 2.00 | D4: =('Sustitutos P'!$B$11*'Oculto P'!$C$27)-(('Oculto P'!$C$27/'Oculto P'!$C$26)*'Oculto P'!C4) -> 19.00 | E4: =$C$33*($B$33+$B$37)*B4 -> 3.00 | F4: =(('Sustitutos P'!$B$11+'Sustitutos P'!$B$15)*'Oculto P'!$C$27)-(('Oculto P'!$C$27/'Oculto P'!$C$26)*'Oculto P'!E4) -> 28.50 | G4: =$C$33*($B$33-$B$37)*B4 -> 1.00 | H4: =(('Sustitutos P'!$B$11-'Sustitutos P'!$B$15)*'Oculto P'!$C$27)-(('Oculto P'!$C$27/'Oculto P'!$C$26)*'Oculto P'!G4) -> 9.50 | I4: ='Sustitutos P'!$D$11 -> 40.00 | J4: =K4*B4 -> 0.00 | K4: ='Sustitutos P'!$F$11 -> 0 | L4: =I4*B4 -> 2.00 | N4: 2 | O4: 1.05 | P4: =P3+$P$25 -> 4.30 | Q4: =$T$38 -> 16.00 | R4: =$S$38 -> 4.00 | S4: =S3+$S$25 -> 17.20 | T4: =$S$44*O4 -> 5.25 | U4: =$T$44 -> 20.00 | V4: =$S$44 -> 5.00 | W4: =$T$44*O4 -> 21.00 | X4: =X3+$X$25 -> 3.35 | Y4: =$T$45 -> 12.00 | Z4: =$S$45 -> 3.00 | AA4: =AA3+$AA$25 -> 13.40 | AB4: =1/$AB$2 -> 0.05 | AC4: =AC3+AB4 -> 0.05 | AD4: 0.95 | AE4: =$T$38*AC4 -> 0.8 | AF4: =$S$38 -> 4.0 | AG4: =AD4*$S$38 -> 3.8 | AH4: =$T$38 -> 16.0 | AJ4: 2 | AK4: 0.10 | AL4: =AM4*AK4 -> 1.00 | AM4: ='Neutrales P'!$C$10 -> 10.00 | AN4: ='Neutrales P'!$C$10+'Neutrales P'!$B$14 -> 15.00 | AO4: ='Neutrales P'!$C$10-'Neutrales P'!$B$14 -> 5.00 | AP4: =AM4*AC4 -> 0.50 | AQ4: ='Neutrales P'!$D$10 -> 14.00 | AS4: 2 | AT4: 0.10 | AU4: =($AV$24)*AT4 -> 6.00 | AV4: =((-1)*($AV$28*$AV$27))+(($AV$27/$AV$26)*AU4) -> (88.00) | AW4: =((-1)*(($AV$28+'Males P'!$B$16)*$AV$27))+(($AV$27/$AV$26)*AU4) -> -148.00 | AX4: =((-1)*(($AV$28-'Males P'!$B$16)*$AV$27))+(($AV$27/$AV$26)*AU4) -> (28.00) | AY4: =$AV$24 -> 60.00 | AZ4: =AY4*($AT4/2) -> 3.00 | BA4: =(-1*($AV$28*$AV$27))+(($AV$27/$AV$26)*AY4) -> 20.00 | BB4: 1.00 | BD4: 3 | BE4: 2.00 | BF4: =$BF$26*BK4 -> 5.00 | BG4: =$BF$24/($BF$25*$BH$25*BF4) -> 20.00 | BH4: =($BF$24+$BH$24)/($BF$25*$BH$25*BF4) -> 30.00 | BI4: =($BF$24-$BH$24)/($BF$25*$BH$25*BF4) -> 10.00 | BJ4: =1/$BJ$2 -> 0.2 | BK4: =BK3+BJ4 -> 0.3 | BL4: =$BF$26 -> 15.0 | BM4: =BL4*BQ4 -> 0.7 | BN4: =$BH$26 -> 6.7 | BO4: =BN4*BQ4 -> 0.3 | BP4: =1/$BP$2 -> 0.0 | BQ4: =BP4 -> 0.0 | BS4: 5 | BT4: 0.45 | BU4: =BV$26*BT4 -> 90.91 | BV4: =((BX$28/((BU4^(BV$27)))))^(1/BX$27) -> 110.00 | BW4: =(((BX$28+BX$29)/((BU4^(BV$27)))))^(1/BX$27) -> 171.88 | BX4: =(((BX$28-BX$29)/((BU4^(BV$27)))))^(1/BX$27) -> 61.88 | BY4: =BV$26 -> 200.00 | BZ4: =BY4*BQ4 -> 9.523809524 | CA4: =BX$26 -> 50.00 | CB4: =CA4*BQ4 -> 2.380952381 | CD4: 3 | CE4: 2.00 | CF4: =$CF$24*CJ4 -> 0.50 | CG4: =$CF$24-(LOG($CF4)) -> 5.30 | CH4: =($CF$24+$CF$25)-(LOG($CF4)) -> 7.30 | CI4: =($CF$24-$CF$25)-(LOG($CF4)) -> 3.30 | CJ4: =CJ3+$CJ$2 -> 0.1 | CK4: =$CF$26 -> 2 | CL4: =CM4*CJ4 -> 0.47 | CM4: =$CF$27 -> 4.70 | CN4: =CK4*CJ4 -> 0.2 | CP4: 2 | CQ4: 0.10 | CR4: =CQ4*$CR$28 -> 0.15 | CS4: =($CR$30+(($CR$26*$CR$27)*-1)+(($CR$27*CR4)*-1))/($CR$26+CR4) -> 15.53 | CT4: =CR4 -> 0.15 | CU4: =(($CR$30+$CR$31)+(($CR$26*$CR$27)*-1)+(($CR$27*CT4)*-1))/($CR$26+CT4) -> 18.33 | CV4: =CR4 -> 0.15 | CW4: =(($CR$30-$CR$31)+(($CR$26*$CR$27)*-1)+(($CR$27*CV4)*-1))/($CR$26+CV4) -> 12.74 | CX4: =$CR$28 -> 1.50 | CY4: =CZ4*DB4 -> 0.40 | CZ4: =$CR$29 -> 8.00 | DA4: =CX4*DB4 -> 0.08 | DB4: =CQ4/$CQ$23 -> 0.05 | DD4: 5 | DE4: 0.45 | DF4: =DG$26*DE4 -> 9.09 | DG4: =((DI$28/((DF4^(DG$27)))))^(1/DI$27) -> 11.00 | DH4: =(((DI$28+DI$29)/((DF4^(DG$27)))))^(1/DI$27) -> 13.20 | DI4: =(((DI$28-DI$29)/((DF4^(DG$27)))))^(1/DI$27) -> 8.80 | DJ4: =DG$26 -> 20.00 | DK4: =DJ4*DB4 -> 1 | DL4: =DI$26 -> 5.00 | DM4: =DL4*DB4 -> 0.25 | DO4: 8 | DP4: 0.73 | DQ4: =DR$26*DP4 -> 36.36 | DR4: 32.77 | DS4: 21.60 | DT4: 46.71 | DU4: =DR$26 -> 50.00 | DV4: 2.5 | DW4: 29.86 | DX4: 1.492997145 | DY4: =1/20 -> 0.05 | DZ4: =DR$28*-1 -> 10.00 | EA4: =DQ$23*DY4 -> 4.772727273 | EB4: =DR$29*-1 -> 15.00 | EC4: =MAX(DR$3:DT$3)*DY4 -> 2.335407646 | GA4: MAX x1 | GB4: ='CDR3 P'!C7 -> 20.0 | GE4: 0 | GF4: =$GB$3*$GE4^$GB$5*GF$3^$GB$7 -> 0 | GG4: 0 | GH4: 0 | GI4: 0 | GJ4: 0 | GK4: 0 | GL4: 0 | GM4: 0 | GN4: 0 | GO4: 0 | GP4: 0 | GQ4: 0 | GR4: 0 | GS4: 0 | GT4: 0 | GU4: 0 | GV4: =$GB$3*$GE4^$GB$5*GV$3^$GB$7 -> 0 | GW4: 0 | GX4: 0 | GY4: 0 | GZ4: =$GB$3*$GE4^$GB$5*GZ$3^$GB$7 -> 0
A5: 3 | B5: 0.10 | C5: 4.00 | D5: =('Sustitutos P'!$B$11*'Oculto P'!$C$27)-(('Oculto P'!$C$27/'Oculto P'!$C$26)*'Oculto P'!C5) -> 18.00 | E5: 6.00 | F5: =(('Sustitutos P'!$B$11+'Sustitutos P'!$B$15)*'Oculto P'!$C$27)-(('Oculto P'!$C$27/'Oculto P'!$C$26)*'Oculto P'!E5) -> 27.00 | G5: 2.00 | H5: =(('Sustitutos P'!$B$11-'Sustitutos P'!$B$15)*'Oculto P'!$C$27)-(('Oculto P'!$C$27/'Oculto P'!$C$26)*'Oculto P'!G5) -> 9.00 | I5: ='Sustitutos P'!$D$11 -> 40.00 | J5: 0.00 | K5: ='Sustitutos P'!$F$11 -> 0 | L5: 4.00 | N5: 3 | O5: 1.10 | P5: =P4+$P$25 -> 4.60 | Q5: 16.00 | R5: 4.00 | S5: =S4+$S$25 -> 18.40 | T5: 5.50 | U5: 20.00 | V5: 5.00 | W5: 22.00 | X5: =X4+$X$25 -> 3.70 | Y5: 12.00 | Z5: 3.00 | AA5: =AA4+$AA$25 -> 14.80 | AB5: 0.05 | AC5: =AC4+AB5 -> 0.1 | AD5: 0.9 | AE5: 1.6 | AF5: 4.0 | AG5: 3.6 | AH5: 16.0 | AJ5: 3 | AK5: 0.20 | AL5: 2.00 | AM5: ='Neutrales P'!$C$10 -> 10.00 | AN5: ='Neutrales P'!$C$10+'Neutrales P'!$B$14 -> 15.00 | AO5: ='Neutrales P'!$C$10-'Neutrales P'!$B$14 -> 5.00 | AP5: 1.00 | AQ5: ='Neutrales P'!$D$10 -> 14.00 | AS5: 3 | AT5: 0.20 | AU5: 12.00 | AV5: (76.00) | AW5: =((-1)*(($AV$28+'Males P'!$B$16)*$AV$27))+(($AV$27/$AV$26)*AU5) -> -136.00 | AX5: =((-1)*(($AV$28-'Males P'!$B$16)*$AV$27))+(($AV$27/$AV$26)*AU5) -> (16.00) | AY5: 60.00 | AZ5: 6.00 | BA5: 20.00 | BB5: 2.00 | BD5: 4 | BE5: 3.00 | BF5: 7.50 | BG5: 13.33 | BH5: 20.00 | BI5: 6.67 | BJ5: 0.2 | BK5: =BK4+BJ5 -> 0.5 | BL5: 15.0 | BM5: 1.4 | BN5: 6.7 | BO5: 0.6 | BP5: =1/$BP$2 -> 0.0 | BQ5: =BQ4+BP5 -> 0.1 | BS5: 5 | BT5: 0.45 | BU5: 90.91 | BV5: 110.00 | BW5: 171.88 | BX5: 61.88 | BY5: 200.00 | BZ5: 19.04761905 | CA5: 50.00 | CB5: 4.761904762 | CD5: 4 | CE5: 3.00 | CF5: =$CF$24*CJ5 -> 0.75 | CG5: 5.12 | CH5: =($CF$24+$CF$25)-(LOG($CF5)) -> 7.12 | CI5: =($CF$24-$CF$25)-(LOG($CF5)) -> 3.12 | CJ5: =CJ4+$CJ$2 -> 0.15 | CK5: 2 | CL5: 0.70 | CM5: 4.70 | CN5: 0.3 | CP5: 3 | CQ5: 0.20 | CR5: 0.30 | CS5: 14.26 | CT5: 0.30 | CU5: 16.87 | CV5: 0.30 | CW5: 11.65 | CX5: 1.50 | CY5: 0.80 | CZ5: 8.00 | DA5: 0.15 | DB5: 0.1 | DD5: 5 | DE5: 0.45 | DF5: 9.09 | DG5: 11.00 | DH5: 13.20 | DI5: 8.80 | DJ5: 20.00 | DK5: 2 | DL5: 5.00 | DM5: 0.5 | DO5: 8 | DP5: 0.73 | DQ5: 36.36 | DR5: 32.77 | DS5: 21.60 | DT5: 46.71 | DU5: 50.00 | DV5: 5 | DW5: 29.86 | DX5: 2.985994289 | DY5: =DY4+$DY$4 -> 0.1 | DZ5: 10.00 | EA5: 9.545454545 | EB5: 15.00 | EC5: 4.670815293 | GA5: a | GB5: ='CDR3 P'!C8 -> 0.5 | GD5: =HA3 -> 0.05 | GE5: =$GB$6*GD5 -> 1.00 | GF5: 0 | GG5: 1.00 | GH5: 1.41 | GI5: 1.73 | GJ5: 2.00 | GK5: 2.24 | GL5: 2.45 | GM5: 2.65 | GN5: 2.83 | GO5: 3.00 | GP5: 3.16 | GQ5: 3.32 | GR5: 3.46 | GS5: 3.61 | GT5: 3.74 | GU5: 3.87 | GV5: 4.00 | GW5: 4.12 | GX5: 4.24 | GY5: 4.36 | GZ5: 4.47
A6: 4 | B6: 0.15 | C6: 6.00 | D6: =('Sustitutos P'!$B$11*'Oculto P'!$C$27)-(('Oculto P'!$C$27/'Oculto P'!$C$26)*'Oculto P'!C6) -> 17.00 | E6: 9.00 | F6: =(('Sustitutos P'!$B$11+'Sustitutos P'!$B$15)*'Oculto P'!$C$27)-(('Oculto P'!$C$27/'Oculto P'!$C$26)*'Oculto P'!E6) -> 25.50 | G6: 3.00 | H6: =(('Sustitutos P'!$B$11-'Sustitutos P'!$B$15)*'Oculto P'!$C$27)-(('Oculto P'!$C$27/'Oculto P'!$C$26)*'Oculto P'!G6) -> 8.50 | I6: ='Sustitutos P'!$D$11 -> 40.00 | J6: 0.00 | K6: ='Sustitutos P'!$F$11 -> 0 | L6: 6.00 | N6: 4 | O6: 1.15 | P6: 4.90 | Q6: 16.00 | R6: 4.00 | S6: 19.60 | T6: 5.75 | U6: 20.00 | V6: 5.00 | W6: 23.00 | X6: 4.05 | Y6: 12.00 | Z6: 3.00 | AA6: 16.20 | AB6: 0.05 | AC6: 0.15 | AD6: 0.85 | AE6: 2.4 | AF6: 4.0 | AG6: 3.4 | AH6: 16.0 | AJ6: 4 | AK6: 0.30 | AL6: 3.00 | AM6: ='Neutrales P'!$C$10 -> 10.00 | AN6: ='Neutrales P'!$C$10+'Neutrales P'!$B$14 -> 15.00 | AO6: ='Neutrales P'!$C$10-'Neutrales P'!$B$14 -> 5.00 | AP6: 1.50 | AQ6: ='Neutrales P'!$D$10 -> 14.00 | AS6: 4 | AT6: 0.30 | AU6: 18.00 | AV6: (64.00) | AW6: =((-1)*(($AV$28+'Males P'!$B$16)*$AV$27))+(($AV$27/$AV$26)*AU6) -> -124.00 | AX6: =((-1)*(($AV$28-'Males P'!$B$16)*$AV$27))+(($AV$27/$AV$26)*AU6) -> (4.00) | AY6: 60.00 | AZ6: 9.00 | BA6: 20.00 | BB6: 3.00 | BD6: 5 | BE6: 4.00 | BF6: 10.00 | BG6: 10.00 | BH6: 15.00 | BI6: 5.00 | BJ6: 0.2 | BK6: 0.7 | BL6: 15.0 | BM6: 2.1 | BN6: 6.7 | BO6: 1.0 | BP6: 0.0 | BQ6: =BQ5+BP6 -> 0.1 | BS6: 5 | BT6: 0.45 | BU6: 90.91 | BV6: 110.00 | BW6: 171.88 | BX6: 61.88 | BY6: 200.00 | BZ6: 28.57142857 | CA6: 50.00 | CB6: 7.142857143 | CD6: 5 | CE6: 4.00 | CF6: 1.00 | CG6: 5.00 | CH6: 7.00 | CI6: 3.00 | CJ6: 0.2 | CK6: 2 | CL6: 0.94 | CM6: 4.70 | CN6: 0.4 | CP6: 4 | CQ6: 0.30 | CR6: 0.45 | CS6: 13.14 | CT6: 0.45 | CU6: 15.59 | CV6: 0.45 | CW6: 10.69 | CX6: 1.50 | CY6: 1.20 | CZ6: 8.00 | DA6: 0.23 | DB6: 0.15 | DD6: 5 | DE6: 0.45 | DF6: 9.09 | DG6: 11.00 | DH6: 13.20 | DI6: 8.80 | DJ6: 20.00 | DK6: 3 | DL6: 5.00 | DM6: 0.75 | DO6: 8 | DP6: 0.73 | DQ6: 36.36 | DR6: 32.77 | DS6: 21.60 | DT6: 46.71 | DU6: 50.00 | DV6: 7.5 | DW6: 29.86 | DX6: 4.478991434 | DY6: =DY5+$DY$4 -> 0.2 | DZ6: 10.00 | EA6: 14.31818182 | EB6: 15.00 | EC6: 7.006222939 | GA6: MAX x2 | GB6: ='CDR3 P'!C9 -> 20.0 | GD6: =GD5+$HA$3 -> 0.10 | GE6: 2.00 | GF6: 0 | GG6: 1.41 | GH6: 2.00 | GI6: 2.45 | GJ6: 2.83 | GK6: 3.16 | GL6: 3.46 | GM6: 3.74 | GN6: 4.00 | GO6: 4.24 | GP6: 4.47 | GQ6: 4.69 | GR6: 4.90 | GS6: 5.10 | GT6: 5.29 | GU6: 5.48 | GV6: 5.66 | GW6: 5.83 | GX6: 6.00 | GY6: 6.16 | GZ6: 6.32
A7: 5 | B7: 0.20 | C7: 8.00 | D7: =('Sustitutos P'!$B$11*'Oculto P'!$C$27)-(('Oculto P'!$C$27/'Oculto P'!$C$26)*'Oculto P'!C7) -> 16.00 | E7: 12.00 | F7: =(('Sustitutos P'!$B$11+'Sustitutos P'!$B$15)*'Oculto P'!$C$27)-(('Oculto P'!$C$27/'Oculto P'!$C$26)*'Oculto P'!E7) -> 24.00 | G7: 4.00 | H7: =(('Sustitutos P'!$B$11-'Sustitutos P'!$B$15)*'Oculto P'!$C$27)-(('Oculto P'!$C$27/'Oculto P'!$C$26)*'Oculto P'!G7) -> 8.00 | I7: ='Sustitutos P'!$D$11 -> 40.00 | J7: 0.00 | K7: ='Sustitutos P'!$F$11 -> 0 | L7: 8.00 | N7: 5 | O7: 1.20 | P7: 5.20 | Q7: 16.00 | R7: 4.00 | S7: 20.80 | T7: 6.00 | U7: 20.00 | V7: 5.00 | W7: 24.00 | X7: 4.40 | Y7: 12.00 | Z7: 3.00 | AA7: 17.60 | AB7: 0.05 | AC7: 0.2 | AD7: 0.8 | AE7: 3.2 | AF7: 4.0 | AG7: 3.2 | AH7: 16.0 | AJ7: 5 | AK7: 0.40 | AL7: 4.00 | AM7: ='Neutrales P'!$C$10 -> 10.00 | AN7: ='Neutrales P'!$C$10+'Neutrales P'!$B$14 -> 15.00 | AO7: ='Neutrales P'!$C$10-'Neutrales P'!$B$14 -> 5.00 | AP7: 2.00 | AQ7: ='Neutrales P'!$D$10 -> 14.00 | AS7: 5 | AT7: 0.40 | AU7: 24.00 | AV7: (52.00) | AW7: =((-1)*(($AV$28+'Males P'!$B$16)*$AV$27))+(($AV$27/$AV$26)*AU7) -> -112.00 | AX7: =((-1)*(($AV$28-'Males P'!$B$16)*$AV$27))+(($AV$27/$AV$26)*AU7) -> 8.00 | AY7: 60.00 | AZ7: 12.00 | BA7: 20.00 | BB7: 4.00 | BD7: 6 | BE7: 5.00 | BF7: 12.50 | BG7: 8.00 | BH7: 12.00 | BI7: 4.00 | BJ7: 0.2 | BK7: 0.8 | BL7: 15.0 | BM7: 2.9 | BN7: 6.7 | BO7: 1.3 | BP7: 0.0 | BQ7: 0.2 | BS7: 5 | BT7: 0.45 | BU7: 90.91 | BV7: 110.00 | BW7: 171.88 | BX7: 61.88 | BY7: 200.00 | BZ7: 38.0952381 | CA7: 50.00 | CB7: 9.523809524 | CD7: 6 | CE7: 5.00 | CF7: 1.25 | CG7: 4.90 | CH7: 6.90 | CI7: 2.90 | CJ7: 0.25 | CK7: 2 | CL7: 1.17 | CM7: 4.70 | CN7: 0.5 | CP7: 5 | CQ7: 0.40 | CR7: 0.60 | CS7: 12.15 | CT7: 0.60 | CU7: 14.46 | CV7: 0.60 | CW7: 9.85 | CX7: 1.50 | CY7: 1.60 | CZ7: 8.00 | DA7: 0.30 | DB7: 0.2 | DD7: 5 | DE7: 0.45 | DF7: 9.09 | DG7: 11.00 | DH7: 13.20 | DI7: 8.80 | DJ7: 20.00 | DK7: 4 | DL7: 5.00 | DM7: 1 | DO7: 8 | DP7: 0.73 | DQ7: 36.36 | DR7: 32.77 | DS7: 21.60 | DT7: 46.71 | DU7: 50.00 | DV7: 10 | DW7: 29.86 | DX7: 5.971988578 | DY7: 0.2 | DZ7: 10.00 | EA7: 19.09090909 | EB7: 15.00 | EC7: 9.341630586 | GA7: b | GB7: =1-GB5 -> 0.5 | GD7: 0.15 | GE7: 3.00 | GF7: 0 | GG7: 1.73 | GH7: 2.45 | GI7: 3.00 | GJ7: 3.46 | GK7: 3.87 | GL7: 4.24 | GM7: 4.58 | GN7: 4.90 | GO7: 5.20 | GP7: 5.48 | GQ7: 5.74 | GR7: 6.00 | GS7: 6.24 | GT7: 6.48 | GU7: 6.71 | GV7: 6.93 | GW7: 7.14 | GX7: 7.35 | GY7: 7.55 | GZ7: 7.75
A8: 6 | B8: 0.25 | C8: 10.00 | D8: =('Sustitutos P'!$B$11*'Oculto P'!$C$27)-(('Oculto P'!$C$27/'Oculto P'!$C$26)*'Oculto P'!C8) -> 15.00 | E8: 15.00 | F8: =(('Sustitutos P'!$B$11+'Sustitutos P'!$B$15)*'Oculto P'!$C$27)-(('Oculto P'!$C$27/'Oculto P'!$C$26)*'Oculto P'!E8) -> 22.50 | G8: 5.00 | H8: =(('Sustitutos P'!$B$11-'Sustitutos P'!$B$15)*'Oculto P'!$C$27)-(('Oculto P'!$C$27/'Oculto P'!$C$26)*'Oculto P'!G8) -> 7.50 | I8: ='Sustitutos P'!$D$11 -> 40.00 | J8: 0.00 | K8: ='Sustitutos P'!$F$11 -> 0 | L8: 10.00 | N8: 6 | O8: 1.25 | P8: 5.50 | Q8: 16.00 | R8: 4.00 | S8: 22.00 | T8: 6.25 | U8: 20.00 | V8: 5.00 | W8: 25.00 | X8: 4.75 | Y8: 12.00 | Z8: 3.00 | AA8: 19.00 | AB8: 0.05 | AC8: 0.25 | AD8: 0.75 | AE8: 4.0 | AF8: 4.0 | AG8: 3.0 | AH8: 16.0 | AJ8: 6 | AK8: 0.50 | AL8: 5.00 | AM8: ='Neutrales P'!$C$10 -> 10.00 | AN8: ='Neutrales P'!$C$10+'Neutrales P'!$B$14 -> 15.00 | AO8: ='Neutrales P'!$C$10-'Neutrales P'!$B$14 -> 5.00 | AP8: 2.50 | AQ8: ='Neutrales P'!$D$10 -> 14.00 | AS8: 6 | AT8: 0.50 | AU8: 30.00 | AV8: (40.00) | AW8: =((-1)*(($AV$28+'Males P'!$B$16)*$AV$27))+(($AV$27/$AV$26)*AU8) -> -100.00 | AX8: =((-1)*(($AV$28-'Males P'!$B$16)*$AV$27))+(($AV$27/$AV$26)*AU8) -> 20.00 | AY8: 60.00 | AZ8: 15.00 | BA8: 20.00 | BB8: 5.00 | BD8: 7 | BE8: 6.00 | BF8: 15.00 | BG8: 6.67 | BH8: 10.00 | BI8: 3.33 | BJ8: 0.2 | BK8: 1.0 | BL8: 15.0 | BM8: 3.6 | BN8: 6.7 | BO8: 1.6 | BP8: 0.0 | BQ8: 0.2 | BS8: 6 | BT8: 0.55 | BU8: 109.09 | BV8: 91.67 | BW8: 143.23 | BX8: 51.56 | BY8: 200.00 | BZ8: 47.61904762 | CA8: 50.00 | CB8: 11.9047619 | CD8: 7 | CE8: 6.00 | CF8: 1.50 | CG8: 4.82 | CH8: 6.82 | CI8: 2.82 | CJ8: 0.3 | CK8: 2 | CL8: 1.41 | CM8: 4.70 | CN8: 0.6 | CP8: 6 | CQ8: 0.50 | CR8: 0.75 | CS8: 11.27 | CT8: 0.75 | CU8: 13.45 | CV8: 0.75 | CW8: 9.09 | CX8: 1.50 | CY8: 2.00 | CZ8: 8.00 | DA8: 0.38 | DB8: 0.25 | DD8: 6 | DE8: 0.55 | DF8: 10.91 | DG8: 9.17 | DH8: 11.00 | DI8: 7.33 | DJ8: 20.00 | DK8: 5 | DL8: 5.00 | DM8: 1.25 | DO8: 8 | DP8: 0.73 | DQ8: 36.36 | DR8: 32.77 | DS8: 21.60 | DT8: 46.71 | DU8: 50.00 | DV8: 12.5 | DW8: 29.86 | DX8: 7.464985723 | DY8: 0.3 | DZ8: 10.00 | EA8: 23.86363636 | EB8: 15.00 | EC8: 11.67703823 | GD8: 0.20 | GE8: 4.00 | GF8: 0 | GG8: 2.00 | GH8: 2.83 | GI8: 3.46 | GJ8: 4.00 | GK8: 4.47 | GL8: 4.90 | GM8: 5.29 | GN8: 5.66 | GO8: 6.00 | GP8: 6.32 | GQ8: 6.63 | GR8: 6.93 | GS8: 7.21 | GT8: 7.48 | GU8: 7.75 | GV8: 8.00 | GW8: 8.25 | GX8: 8.49 | GY8: 8.72 | GZ8: 8.94
A9: 7 | B9: 0.30 | C9: 12.00 | D9: =('Sustitutos P'!$B$11*'Oculto P'!$C$27)-(('Oculto P'!$C$27/'Oculto P'!$C$26)*'Oculto P'!C9) -> 14.00 | E9: 18.00 | F9: =(('Sustitutos P'!$B$11+'Sustitutos P'!$B$15)*'Oculto P'!$C$27)-(('Oculto P'!$C$27/'Oculto P'!$C$26)*'Oculto P'!E9) -> 21.00 | G9: 6.00 | H9: =(('Sustitutos P'!$B$11-'Sustitutos P'!$B$15)*'Oculto P'!$C$27)-(('Oculto P'!$C$27/'Oculto P'!$C$26)*'Oculto P'!G9) -> 7.00 | I9: ='Sustitutos P'!$D$11 -> 40.00 | J9: 0.00 | K9: ='Sustitutos P'!$F$11 -> 0 | L9: 12.00 | N9: 7 | O9: 1.30 | P9: 5.80 | Q9: 16.00 | R9: 4.00 | S9: 23.20 | T9: 6.50 | U9: 20.00 | V9: 5.00 | W9: 26.00 | X9: 5.10 | Y9: 12.00 | Z9: 3.00 | AA9: 20.40 | AB9: 0.05 | AC9: 0.3 | AD9: 0.7 | AE9: 4.8 | AF9: 4.0 | AG9: 2.8 | AH9: 16.0 | AJ9: 7 | AK9: 0.60 | AL9: 6.00 | AM9: ='Neutrales P'!$C$10 -> 10.00 | AN9: ='Neutrales P'!$C$10+'Neutrales P'!$B$14 -> 15.00 | AO9: ='Neutrales P'!$C$10-'Neutrales P'!$B$14 -> 5.00 | AP9: 3.00 | AQ9: ='Neutrales P'!$D$10 -> 14.00 | AS9: 7 | AT9: 0.60 | AU9: 36.00 | AV9: (28.00) | AW9: =((-1)*(($AV$28+'Males P'!$B$16)*$AV$27))+(($AV$27/$AV$26)*AU9) -> -88.00 | AX9: =((-1)*(($AV$28-'Males P'!$B$16)*$AV$27))+(($AV$27/$AV$26)*AU9) -> 32.00 | AY9: 60.00 | AZ9: 18.00 | BA9: 20.00 | BB9: 6.00 | BD9: 8 | BE9: 7.00 | BF9: 17.50 | BG9: 5.71 | BH9: 8.57 | BI9: 2.86 | BJ9: 0.2 | BK9: 1.2 | BL9: 15.0 | BM9: 4.3 | BN9: 6.7 | BO9: 1.9 | BP9: 0.0 | BQ9: 0.3 | BS9: 7 | BT9: 0.64 | BU9: 127.27 | BV9: 78.57 | BW9: 122.77 | BX9: 44.20 | BY9: 200.00 | BZ9: 57.14285714 | CA9: 50.00 | CB9: 14.28571429 | CD9: 8 | CE9: 7.00 | CF9: 1.75 | CG9: 4.76 | CH9: 6.76 | CI9: 2.76 | CJ9: 0.35 | CK9: 2 | CL9: 1.64 | CM9: 4.70 | CN9: 0.7 | CP9: 7 | CQ9: 0.60 | CR9: 0.90 | CS9: 10.48 | CT9: 0.90 | CU9: 12.55 | CV9: 0.90 | CW9: 8.41 | CX9: 1.50 | CY9: 2.40 | CZ9: 8.00 | DA9: 0.45 | DB9: 0.3 | DD9: 7 | DE9: 0.64 | DF9: 12.73 | DG9: 7.86 | DH9: 9.43 | DI9: 6.29 | DJ9: 20.00 | DK9: 6 | DL9: 5.00 | DM9: 1.5 | DO9: 8 | DP9: 0.73 | DQ9: 36.36 | DR9: 32.77 | DS9: 21.60 | DT9: 46.71 | DU9: 50.00 | DV9: 15 | DW9: 29.86 | DX9: 8.957982867 | DY9: 0.3 | DZ9: 10.00 | EA9: 28.63636364 | EB9: 15.00 | EC9: 14.01244588 | GD9: 0.25 | GE9: 5.00 | GF9: 0 | GG9: 2.24 | GH9: 3.16 | GI9: 3.87 | GJ9: 4.47 | GK9: 5.00 | GL9: 5.48 | GM9: 5.92 | GN9: 6.32 | GO9: 6.71 | GP9: 7.07 | GQ9: 7.42 | GR9: 7.75 | GS9: 8.06 | GT9: 8.37 | GU9: 8.66 | GV9: 8.94 | GW9: 9.22 | GX9: 9.49 | GY9: 9.75 | GZ9: 10.00
A10: 8 | B10: 0.35 | C10: 14.00 | D10: =('Sustitutos P'!$B$11*'Oculto P'!$C$27)-(('Oculto P'!$C$27/'Oculto P'!$C$26)*'Oculto P'!C10) -> 13.00 | E10: 21.00 | F10: =(('Sustitutos P'!$B$11+'Sustitutos P'!$B$15)*'Oculto P'!$C$27)-(('Oculto P'!$C$27/'Oculto P'!$C$26)*'Oculto P'!E10) -> 19.50 | G10: 7.00 | H10: =(('Sustitutos P'!$B$11-'Sustitutos P'!$B$15)*'Oculto P'!$C$27)-(('Oculto P'!$C$27/'Oculto P'!$C$26)*'Oculto P'!G10) -> 6.50 | I10: ='Sustitutos P'!$D$11 -> 40.00 | J10: 0.00 | K10: ='Sustitutos P'!$F$11 -> 0 | L10: 14.00 | N10: 8 | O10: 1.35 | P10: 6.10 | Q10: 16.00 | R10: 4.00 | S10: 24.40 | T10: 6.75 | U10: 20.00 | V10: 5.00 | W10: 27.00 | X10: 5.45 | Y10: 12.00 | Z10: 3.00 | AA10: 21.80 | AB10: 0.05 | AC10: 0.35 | AD10: 0.65 | AE10: 5.6 | AF10: 4.0 | AG10: 2.6 | AH10: 16.0 | AJ10: 8 | AK10: 0.70 | AL10: 7.00 | AM10: ='Neutrales P'!$C$10 -> 10.00 | AN10: ='Neutrales P'!$C$10+'Neutrales P'!$B$14 -> 15.00 | AO10: ='Neutrales P'!$C$10-'Neutrales P'!$B$14 -> 5.00 | AP10: 3.50 | AQ10: ='Neutrales P'!$D$10 -> 14.00 | AS10: 8 | AT10: 0.70 | AU10: 42.00 | AV10: (16.00) | AW10: =((-1)*(($AV$28+'Males P'!$B$16)*$AV$27))+(($AV$27/$AV$26)*AU10) -> -76.00 | AX10: =((-1)*(($AV$28-'Males P'!$B$16)*$AV$27))+(($AV$27/$AV$26)*AU10) -> 44.00 | AY10: 60.00 | AZ10: 21.00 | BA10: 20.00 | BB10: 7.00 | BD10: 9 | BE10: 8.00 | BF10: 20.00 | BG10: 5.00 | BH10: 7.50 | BI10: 2.50 | BJ10: 0.2 | BK10: 1.3 | BL10: 15.0 | BM10: 5.0 | BN10: 6.7 | BO10: 2.2 | BP10: 0.0 | BQ10: 0.3 | BS10: 8 | BT10: 0.73 | BU10: 145.45 | BV10: 68.75 | BW10: 107.42 | BX10: 38.67 | BY10: 200.00 | BZ10: 66.66666667 | CA10: 50.00 | CB10: 16.66666667 | CD10: 9 | CE10: 8.00 | CF10: 2.00 | CG10: 4.70 | CH10: 6.70 | CI10: 2.70 | CJ10: 0.4 | CK10: 2 | CL10: 1.88 | CM10: 4.70 | CN10: 0.8 | CP10: 8 | CQ10: 0.70 | CR10: 1.05 | CS10: 9.77 | CT10: 1.05 | CU10: 11.74 | CV10: 1.05 | CW10: 7.80 | CX10: 1.50 | CY10: 2.80 | CZ10: 8.00 | DA10: 0.53 | DB10: 0.35 | DD10: 8 | DE10: 0.73 | DF10: 14.55 | DG10: 6.88 | DH10: 8.25 | DI10: 5.50 | DJ10: 20.00 | DK10: 7 | DL10: 5.00 | DM10: 1.75 | DO10: 8 | DP10: 0.73 | DQ10: 36.36 | DR10: 32.77 | DS10: 21.60 | DT10: 46.71 | DU10: 50.00 | DV10: 17.5 | DW10: 29.86 | DX10: 10.45098001 | DY10: 0.4 | DZ10: 10.00 | EA10: 33.40909091 | EB10: 15.00 | EC10: 16.34785353 | GA10: UMg1 | GB10: =(GB5*GB3*((GB6/GB4)^(GB7))) -> 0.50 | GD10: 0.30 | GE10: 6.00 | GF10: 0 | GG10: 2.45 | GH10: 3.46 | GI10: 4.24 | GJ10: 4.90 | GK10: 5.48 | GL10: 6.00 | GM10: 6.48 | GN10: 6.93 | GO10: 7.35 | GP10: 7.75 | GQ10: 8.12 | GR10: 8.49 | GS10: 8.83 | GT10: 9.17 | GU10: 9.49 | GV10: 9.80 | GW10: 10.10 | GX10: 10.39 | GY10: 10.68 | GZ10: 10.95
A11: 9 | B11: 0.40 | C11: 16.00 | D11: =('Sustitutos P'!$B$11*'Oculto P'!$C$27)-(('Oculto P'!$C$27/'Oculto P'!$C$26)*'Oculto P'!C11) -> 12.00 | E11: 24.00 | F11: =(('Sustitutos P'!$B$11+'Sustitutos P'!$B$15)*'Oculto P'!$C$27)-(('Oculto P'!$C$27/'Oculto P'!$C$26)*'Oculto P'!E11) -> 18.00 | G11: 8.00 | H11: =(('Sustitutos P'!$B$11-'Sustitutos P'!$B$15)*'Oculto P'!$C$27)-(('Oculto P'!$C$27/'Oculto P'!$C$26)*'Oculto P'!G11) -> 6.00 | I11: ='Sustitutos P'!$D$11 -> 40.00 | J11: 0.00 | K11: ='Sustitutos P'!$F$11 -> 0 | L11: 16.00 | N11: 9 | O11: 1.40 | P11: 6.40 | Q11: 16.00 | R11: 4.00 | S11: 25.60 | T11: 7.00 | U11: 20.00 | V11: 5.00 | W11: 28.00 | X11: 5.80 | Y11: 12.00 | Z11: 3.00 | AA11: 23.20 | AB11: 0.05 | AC11: 0.4 | AD11: 0.6 | AE11: 6.4 | AF11: 4.0 | AG11: 2.4 | AH11: 16.0 | AJ11: 9 | AK11: 0.80 | AL11: 8.00 | AM11: ='Neutrales P'!$C$10 -> 10.00 | AN11: ='Neutrales P'!$C$10+'Neutrales P'!$B$14 -> 15.00 | AO11: ='Neutrales P'!$C$10-'Neutrales P'!$B$14 -> 5.00 | AP11: 4.00 | AQ11: ='Neutrales P'!$D$10 -> 14.00 | AS11: 9 | AT11: 0.80 | AU11: 48.00 | AV11: (4.00) | AW11: =((-1)*(($AV$28+'Males P'!$B$16)*$AV$27))+(($AV$27/$AV$26)*AU11) -> -64.00 | AX11: =((-1)*(($AV$28-'Males P'!$B$16)*$AV$27))+(($AV$27/$AV$26)*AU11) -> 56.00 | AY11: 60.00 | AZ11: 24.00 | BA11: 20.00 | BB11: 8.00 | BD11: 10 | BE11: 9.00 | BF11: 22.50 | BG11: 4.44 | BH11: 6.67 | BI11: 2.22 | BJ11: 0.2 | BK11: 1.5 | BL11: 15.0 | BM11: 5.7 | BN11: 6.7 | BO11: 2.5 | BP11: 0.0 | BQ11: 0.4 | BS11: 9 | BT11: 0.82 | BU11: 163.64 | BV11: 61.11 | BW11: 95.49 | BX11: 34.38 | BY11: 200.00 | BZ11: 76.19047619 | CA11: 50.00 | CB11: 19.04761905 | CD11: 10 | CE11: 9.00 | CF11: 2.25 | CG11: 4.65 | CH11: 6.65 | CI11: 2.65 | CJ11: 0.45 | CK11: 2 | CL11: 2.11 | CM11: 4.70 | CN11: 0.9 | CP11: 9 | CQ11: 0.80 | CR11: 1.20 | CS11: 9.13 | CT11: 1.20 | CU11: 11.00 | CV11: 1.20 | CW11: 7.25 | CX11: 1.50 | CY11: 3.20 | CZ11: 8.00 | DA11: 0.60 | DB11: 0.4 | DD11: 9 | DE11: 0.82 | DF11: 16.36 | DG11: 6.11 | DH11: 7.33 | DI11: 4.89 | DJ11: 20.00 | DK11: 8 | DL11: 5.00 | DM11: 2 | DO11: 9 | DP11: 0.82 | DQ11: 40.91 | DR11: 31.60 | DS11: 21.17 | DT11: 44.62 | DU11: 50.00 | DV11: 20 | DW11: 29.86 | DX11: 11.94397716 | DY11: 0.4 | DZ11: 10.00 | EA11: 38.18181818 | EB11: 15.00 | EC11: 18.68326117 | GA11: UMg2 | GB11: =(GB7*GB3*((GB4/GB6)^(GB5))) -> 0.50 | GD11: 0.35 | GE11: 7.00 | GF11: 0 | GG11: 2.65 | GH11: 3.74 | GI11: 4.58 | GJ11: 5.29 | GK11: 5.92 | GL11: 6.48 | GM11: 7.00 | GN11: 7.48 | GO11: 7.94 | GP11: 8.37 | GQ11: 8.77 | GR11: 9.17 | GS11: 9.54 | GT11: 9.90 | GU11: 10.25 | GV11: 10.58 | GW11: 10.91 | GX11: 11.22 | GY11: 11.53 | GZ11: 11.83
A12: 10 | B12: 0.45 | C12: 18.00 | D12: =('Sustitutos P'!$B$11*'Oculto P'!$C$27)-(('Oculto P'!$C$27/'Oculto P'!$C$26)*'Oculto P'!C12) -> 11.00 | E12: 27.00 | F12: =(('Sustitutos P'!$B$11+'Sustitutos P'!$B$15)*'Oculto P'!$C$27)-(('Oculto P'!$C$27/'Oculto P'!$C$26)*'Oculto P'!E12) -> 16.50 | G12: 9.00 | H12: =(('Sustitutos P'!$B$11-'Sustitutos P'!$B$15)*'Oculto P'!$C$27)-(('Oculto P'!$C$27/'Oculto P'!$C$26)*'Oculto P'!G12) -> 5.50 | I12: ='Sustitutos P'!$D$11 -> 40.00 | J12: 0.00 | K12: ='Sustitutos P'!$F$11 -> 0 | L12: 18.00 | N12: 10 | O12: 1.45 | P12: 6.70 | Q12: 16.00 | R12: 4.00 | S12: 26.80 | T12: 7.25 | U12: 20.00 | V12: 5.00 | W12: 29.00 | X12: 6.15 | Y12: 12.00 | Z12: 3.00 | AA12: 24.60 | AB12: 0.05 | AC12: 0.45 | AD12: 0.55 | AE12: 7.2 | AF12: 4.0 | AG12: 2.2 | AH12: 16.0 | AJ12: 10 | AK12: 0.90 | AL12: 9.00 | AM12: ='Neutrales P'!$C$10 -> 10.00 | AN12: ='Neutrales P'!$C$10+'Neutrales P'!$B$14 -> 15.00 | AO12: ='Neutrales P'!$C$10-'Neutrales P'!$B$14 -> 5.00 | AP12: 4.50 | AQ12: ='Neutrales P'!$D$10 -> 14.00 | AS12: 10 | AT12: 0.90 | AU12: 54.00 | AV12: 8.00 | AW12: =((-1)*(($AV$28+'Males P'!$B$16)*$AV$27))+(($AV$27/$AV$26)*AU12) -> -52.00 | AX12: =((-1)*(($AV$28-'Males P'!$B$16)*$AV$27))+(($AV$27/$AV$26)*AU12) -> 68.00 | AY12: 60.00 | AZ12: 27.00 | BA12: 20.00 | BB12: 9.00 | BD12: 11 | BE12: 10.00 | BF12: 25.00 | BG12: 4.00 | BH12: 6.00 | BI12: 2.00 | BJ12: 0.2 | BK12: 1.7 | BL12: 15.0 | BM12: 6.4 | BN12: 6.7 | BO12: 2.9 | BP12: 0.0 | BQ12: 0.4 | BS12: 10 | BT12: 0.91 | BU12: 181.82 | BV12: 55.00 | BW12: 85.94 | BX12: 30.94 | BY12: 200.00 | BZ12: 85.71428571 | CA12: 50.00 | CB12: 21.42857143 | CD12: 11 | CE12: 10.00 | CF12: 2.50 | CG12: 4.60 | CH12: 6.60 | CI12: 2.60 | CJ12: 0.5 | CK12: 2 | CL12: 2.35 | CM12: 4.70 | CN12: 1 | CP12: 10 | CQ12: =CQ13-0.1 -> 0.90 | CR12: 1.35 | CS12: 8.54 | CT12: 1.35 | CU12: 10.33 | CV12: 1.35 | CW12: 6.75 | CX12: 1.50 | CY12: 3.60 | CZ12: 8.00 | DA12: 0.68 | DB12: 0.45 | DD12: 10 | DE12: 0.91 | DF12: 18.18 | DG12: 5.50 | DH12: 6.60 | DI12: 4.40 | DJ12: 20.00 | DK12: 9 | DL12: 5.00 | DM12: 2.25 | DO12: 10 | DP12: 0.91 | DQ12: 45.45 | DR12: 30.65 | DS12: 20.81 | DT12: 42.93 | DU12: 50.00 | DV12: 22.5 | DW12: 29.86 | DX12: 13.4369743 | DY12: 0.5 | DZ12: 10.00 | EA12: 42.95454545 | EB12: 15.00 | EC12: 21.01866882 | GA12: RMgS | GB12: =GB10/GB11*-1 -> -1.00 | GD12: 0.40 | GE12: 8.00 | GF12: 0 | GG12: 2.83 | GH12: 4.00 | GI12: 4.90 | GJ12: 5.66 | GK12: 6.32 | GL12: 6.93 | GM12: 7.48 | GN12: 8.00 | GO12: 8.49 | GP12: 8.94 | GQ12: 9.38 | GR12: 9.80 | GS12: 10.20 | GT12: 10.58 | GU12: 10.95 | GV12: 11.31 | GW12: 11.66 | GX12: 12.00 | GY12: 12.33 | GZ12: 12.65
A13: 11 | B13: 0.50 | C13: 20.00 | D13: =('Sustitutos P'!$B$11*'Oculto P'!$C$27)-(('Oculto P'!$C$27/'Oculto P'!$C$26)*'Oculto P'!C13) -> 10.00 | E13: 30.00 | F13: =(('Sustitutos P'!$B$11+'Sustitutos P'!$B$15)*'Oculto P'!$C$27)-(('Oculto P'!$C$27/'Oculto P'!$C$26)*'Oculto P'!E13) -> 15.00 | G13: 10.00 | H13: =(('Sustitutos P'!$B$11-'Sustitutos P'!$B$15)*'Oculto P'!$C$27)-(('Oculto P'!$C$27/'Oculto P'!$C$26)*'Oculto P'!G13) -> 5.00 | I13: ='Sustitutos P'!$D$11 -> 40.00 | J13: 0.00 | K13: ='Sustitutos P'!$F$11 -> 0 | L13: 20.00 | N13: 11 | O13: 1.50 | P13: 7.00 | Q13: 16.00 | R13: 4.00 | S13: 28.00 | T13: 7.50 | U13: 20.00 | V13: 5.00 | W13: 30.00 | X13: 6.50 | Y13: 12.00 | Z13: 3.00 | AA13: 26.00 | AB13: 0.05 | AC13: 0.5 | AD13: 0.5 | AE13: 8.0 | AF13: 4.0 | AG13: 2.0 | AH13: 16.0 | AJ13: 11 | AK13: 1.00 | AL13: 10.00 | AM13: ='Neutrales P'!$C$10 -> 10.00 | AN13: ='Neutrales P'!$C$10+'Neutrales P'!$B$14 -> 15.00 | AO13: ='Neutrales P'!$C$10-'Neutrales P'!$B$14 -> 5.00 | AP13: 5.00 | AQ13: ='Neutrales P'!$D$10 -> 14.00 | AS13: 11 | AT13: 1.00 | AU13: 60.00 | AV13: 20.00 | AW13: =((-1)*(($AV$28+'Males P'!$B$16)*$AV$27))+(($AV$27/$AV$26)*AU13) -> -40.00 | AX13: =((-1)*(($AV$28-'Males P'!$B$16)*$AV$27))+(($AV$27/$AV$26)*AU13) -> 80.00 | AY13: 60.00 | AZ13: 30.00 | BA13: 20.00 | BB13: 10.00 | BD13: 12 | BE13: 11.00 | BF13: 27.50 | BG13: 3.64 | BH13: 5.45 | BI13: 1.82 | BJ13: 0.2 | BK13: 1.8 | BL13: 15.0 | BM13: 7.1 | BN13: 6.7 | BO13: 3.2 | BP13: 0.0 | BQ13: 0.5 | BS13: 11 | BT13: =BS13/$BS$13 -> 1.00 | BU13: 200.00 | BV13: 50.00 | BW13: 78.13 | BX13: 28.13 | BY13: 200.00 | BZ13: 95.23809524 | CA13: 50.00 | CB13: 23.80952381 | CD13: 12 | CE13: 11.00 | CF13: 2.75 | CG13: 4.56 | CH13: 6.56 | CI13: 2.56 | CJ13: 0.55 | CK13: 2 | CL13: 2.58 | CM13: 4.70 | CN13: 1.1 | CP13: 11 | CQ13: 1.00 | CR13: 1.50 | CS13: 8.00 | CT13: 1.50 | CU13: 9.71 | CV13: 1.50 | CW13: 6.29 | CX13: 1.50 | CY13: 4.00 | CZ13: 8.00 | DA13: 0.75 | DB13: 0.5 | DD13: 11 | DE13: =DD13/$BS$13 -> 1.00 | DF13: 20.00 | DG13: 5.00 | DH13: 6.00 | DI13: 4.00 | DJ13: 20.00 | DK13: 10 | DL13: 5.00 | DM13: 2.5 | DO13: 11 | DP13: =DO13/$BS$13 -> 1.00 | DQ13: 50.00 | DR13: 29.86 | DS13: 20.52 | DT13: 41.52 | DU13: 50.00 | DV13: 25 | DW13: 29.86 | DX13: 14.92997145 | DY13: 0.5 | DZ13: 10.00 | EA13: 47.72727273 | EB13: 15.00 | EC13: 23.35407646 | GD13: 0.45 | GE13: 9.00 | GF13: 0 | GG13: 3.00 | GH13: 4.24 | GI13: 5.20 | GJ13: 6.00 | GK13: 6.71 | GL13: 7.35 | GM13: 7.94 | GN13: 8.49 | GO13: 9.00 | GP13: 9.49 | GQ13: 9.95 | GR13: 10.39 | GS13: 10.82 | GT13: 11.22 | GU13: 11.62 | GV13: 12.00 | GW13: 12.37 | GX13: 12.73 | GY13: 13.08 | GZ13: 13.42
A14: 12 | B14: 0.55 | C14: 22.00 | D14: =('Sustitutos P'!$B$11*'Oculto P'!$C$27)-(('Oculto P'!$C$27/'Oculto P'!$C$26)*'Oculto P'!C14) -> 9.00 | E14: 33.00 | F14: =(('Sustitutos P'!$B$11+'Sustitutos P'!$B$15)*'Oculto P'!$C$27)-(('Oculto P'!$C$27/'Oculto P'!$C$26)*'Oculto P'!E14) -> 13.50 | G14: 11.00 | H14: =(('Sustitutos P'!$B$11-'Sustitutos P'!$B$15)*'Oculto P'!$C$27)-(('Oculto P'!$C$27/'Oculto P'!$C$26)*'Oculto P'!G14) -> 4.50 | I14: ='Sustitutos P'!$D$11 -> 40.00 | J14: 0.00 | K14: ='Sustitutos P'!$F$11 -> 0 | L14: 22.00 | N14: 12 | O14: 1.55 | P14: 7.30 | Q14: 16.00 | R14: 4.00 | S14: 29.20 | T14: 7.75 | U14: 20.00 | V14: 5.00 | W14: 31.00 | X14: 6.85 | Y14: 12.00 | Z14: 3.00 | AA14: 27.40 | AB14: 0.05 | AC14: 0.55 | AD14: 0.45 | AE14: 8.8 | AF14: 4.0 | AG14: 1.8 | AH14: 16.0 | AJ14: 12 | AK14: 1.10 | AL14: 11.00 | AM14: ='Neutrales P'!$C$10 -> 10.00 | AN14: ='Neutrales P'!$C$10+'Neutrales P'!$B$14 -> 15.00 | AO14: ='Neutrales P'!$C$10-'Neutrales P'!$B$14 -> 5.00 | AP14: 5.50 | AQ14: ='Neutrales P'!$D$10 -> 14.00 | AS14: 12 | AT14: 1.10 | AU14: 66.00 | AV14: 32.00 | AW14: =((-1)*(($AV$28+'Males P'!$B$16)*$AV$27))+(($AV$27/$AV$26)*AU14) -> -28.00 | AX14: =((-1)*(($AV$28-'Males P'!$B$16)*$AV$27))+(($AV$27/$AV$26)*AU14) -> 92.00 | AY14: 60.00 | AZ14: 33.00 | BA14: 20.00 | BB14: 11.00 | BD14: 13 | BE14: 12.00 | BF14: 30.00 | BG14: 3.33 | BH14: 5.00 | BI14: 1.67 | BJ14: 0.2 | BK14: 2.0 | BL14: 15.0 | BM14: 7.9 | BN14: 6.7 | BO14: 3.5 | BP14: 0.0 | BQ14: 0.5 | BS14: 12 | BT14: =BS14/$BS$13 -> 1.09 | BU14: 218.18 | BV14: 45.83 | BW14: 71.61 | BX14: 25.78 | BY14: 200.00 | BZ14: 104.7619048 | CA14: 50.00 | CB14: 26.19047619 | CD14: 13 | CE14: 12.00 | CF14: 3.00 | CG14: 4.52 | CH14: 6.52 | CI14: 2.52 | CJ14: 0.6 | CK14: 2 | CL14: 2.82 | CM14: 4.70 | CN14: 1.2 | CP14: 12 | CQ14: =CQ13+0.1 -> 1.10 | CR14: 1.65 | CS14: 7.51 | CT14: 1.65 | CU14: 9.15 | CV14: 1.65 | CW14: 5.86 | CX14: 1.50 | CY14: 4.40 | CZ14: 8.00 | DA14: 0.83 | DB14: 0.55 | DD14: 12 | DE14: =DD14/$BS$13 -> 1.09 | DF14: 21.82 | DG14: 4.58 | DH14: 5.50 | DI14: 3.67 | DJ14: 20.00 | DK14: 11 | DL14: 5.00 | DM14: 2.75 | DO14: 12 | DP14: =DO14/$BS$13 -> 1.09 | DQ14: 54.55 | DR14: 29.19 | DS14: 20.27 | DT14: 40.32 | DU14: 50.00 | DV14: 27.5 | DW14: 29.86 | DX14: 16.42296859 | DY14: 0.6 | DZ14: 10.00 | EA14: 52.5 | EB14: 15.00 | EC14: 25.68948411 | GD14: 0.50 | GE14: 10.00 | GF14: 0 | GG14: 3.16 | GH14: 4.47 | GI14: 5.48 | GJ14: 6.32 | GK14: 7.07 | GL14: 7.75 | GM14: 8.37 | GN14: 8.94 | GO14: 9.49 | GP14: 10.00 | GQ14: 10.49 | GR14: 10.95 | GS14: 11.40 | GT14: 11.83 | GU14: 12.25 | GV14: 12.65 | GW14: 13.04 | GX14: 13.42 | GY14: 13.78 | GZ14: 14.14
A15: 13 | B15: 0.60 | C15: 24.00 | D15: =('Sustitutos P'!$B$11*'Oculto P'!$C$27)-(('Oculto P'!$C$27/'Oculto P'!$C$26)*'Oculto P'!C15) -> 8.00 | E15: 36.00 | F15: =(('Sustitutos P'!$B$11+'Sustitutos P'!$B$15)*'Oculto P'!$C$27)-(('Oculto P'!$C$27/'Oculto P'!$C$26)*'Oculto P'!E15) -> 12.00 | G15: 12.00 | H15: =(('Sustitutos P'!$B$11-'Sustitutos P'!$B$15)*'Oculto P'!$C$27)-(('Oculto P'!$C$27/'Oculto P'!$C$26)*'Oculto P'!G15) -> 4.00 | I15: ='Sustitutos P'!$D$11 -> 40.00 | J15: 0.00 | K15: ='Sustitutos P'!$F$11 -> 0 | L15: 24.00 | N15: 13 | O15: 1.60 | P15: 7.60 | Q15: 16.00 | R15: 4.00 | S15: 30.40 | T15: 8.00 | U15: 20.00 | V15: 5.00 | W15: 32.00 | X15: 7.20 | Y15: 12.00 | Z15: 3.00 | AA15: 28.80 | AB15: 0.05 | AC15: 0.6 | AD15: 0.4 | AE15: 9.6 | AF15: 4.0 | AG15: 1.6 | AH15: 16.0 | AJ15: 13 | AK15: 1.20 | AL15: 12.00 | AM15: ='Neutrales P'!$C$10 -> 10.00 | AN15: ='Neutrales P'!$C$10+'Neutrales P'!$B$14 -> 15.00 | AO15: ='Neutrales P'!$C$10-'Neutrales P'!$B$14 -> 5.00 | AP15: 6.00 | AQ15: ='Neutrales P'!$D$10 -> 14.00 | AS15: 13 | AT15: 1.20 | AU15: 72.00 | AV15: 44.00 | AW15: =((-1)*(($AV$28+'Males P'!$B$16)*$AV$27))+(($AV$27/$AV$26)*AU15) -> -16.00 | AX15: =((-1)*(($AV$28-'Males P'!$B$16)*$AV$27))+(($AV$27/$AV$26)*AU15) -> 104.00 | AY15: 60.00 | AZ15: 36.00 | BA15: 20.00 | BB15: 12.00 | BD15: 14 | BE15: 13.00 | BF15: 32.50 | BG15: 3.08 | BH15: 4.62 | BI15: 1.54 | BJ15: 0.2 | BK15: 2.2 | BL15: 15.0 | BM15: 8.6 | BN15: 6.7 | BO15: 3.8 | BP15: 0.0 | BQ15: 0.6 | BS15: 13 | BT15: 1.18 | BU15: 236.36 | BV15: 42.31 | BW15: 66.11 | BX15: 23.80 | BY15: 200.00 | BZ15: 114.2857143 | CA15: 50.00 | CB15: 28.57142857 | CD15: 14 | CE15: 13.00 | CF15: 3.25 | CG15: 4.49 | CH15: 6.49 | CI15: 2.49 | CJ15: 0.65 | CK15: 2 | CL15: 3.05 | CM15: 4.70 | CN15: 1.3 | CP15: 13 | CQ15: =CQ14+0.1 -> 1.20 | CR15: 1.80 | CS15: 7.05 | CT15: 1.80 | CU15: 8.63 | CV15: 1.80 | CW15: 5.47 | CX15: 1.50 | CY15: 4.80 | CZ15: 8.00 | DA15: 0.90 | DB15: 0.6 | DD15: 13 | DE15: 1.18 | DF15: 23.64 | DG15: 4.23 | DH15: 5.08 | DI15: 3.38 | DJ15: 20.00 | DK15: 12 | DL15: 5.00 | DM15: 3 | DO15: 13 | DP15: 1.18 | DQ15: 59.09 | DR15: 28.61 | DS15: 20.06 | DT15: 39.29 | DU15: 50.00 | DV15: 30 | DW15: 29.86 | DX15: 17.91596573 | DY15: 0.6 | DZ15: 10.00 | EA15: 57.27272727 | EB15: 15.00 | EC15: 28.02489176 | GD15: 0.55 | GE15: 11.00 | GF15: 0 | GG15: 3.32 | GH15: 4.69 | GI15: 5.74 | GJ15: 6.63 | GK15: 7.42 | GL15: 8.12 | GM15: 8.77 | GN15: 9.38 | GO15: 9.95 | GP15: 10.49 | GQ15: 11.00 | GR15: 11.49 | GS15: 11.96 | GT15: 12.41 | GU15: 12.85 | GV15: 13.27 | GW15: 13.67 | GX15: 14.07 | GY15: 14.46 | GZ15: 14.83
A16: 14 | B16: 0.65 | C16: 26.00 | D16: =('Sustitutos P'!$B$11*'Oculto P'!$C$27)-(('Oculto P'!$C$27/'Oculto P'!$C$26)*'Oculto P'!C16) -> 7.00 | E16: 39.00 | F16: =(('Sustitutos P'!$B$11+'Sustitutos P'!$B$15)*'Oculto P'!$C$27)-(('Oculto P'!$C$27/'Oculto P'!$C$26)*'Oculto P'!E16) -> 10.50 | G16: 13.00 | H16: =(('Sustitutos P'!$B$11-'Sustitutos P'!$B$15)*'Oculto P'!$C$27)-(('Oculto P'!$C$27/'Oculto P'!$C$26)*'Oculto P'!G16) -> 3.50 | I16: ='Sustitutos P'!$D$11 -> 40.00 | J16: 0.00 | K16: ='Sustitutos P'!$F$11 -> 0 | L16: 26.00 | N16: 14 | O16: 1.65 | P16: 7.90 | Q16: 16.00 | R16: 4.00 | S16: 31.60 | T16: 8.25 | U16: 20.00 | V16: 5.00 | W16: 33.00 | X16: 7.55 | Y16: 12.00 | Z16: 3.00 | AA16: 30.20 | AB16: 0.05 | AC16: 0.65 | AD16: 0.35 | AE16: 10.4 | AF16: 4.0 | AG16: 1.4 | AH16: 16.0 | AJ16: 14 | AK16: 1.30 | AL16: 13.00 | AM16: ='Neutrales P'!$C$10 -> 10.00 | AN16: ='Neutrales P'!$C$10+'Neutrales P'!$B$14 -> 15.00 | AO16: ='Neutrales P'!$C$10-'Neutrales P'!$B$14 -> 5.00 | AP16: 6.50 | AQ16: ='Neutrales P'!$D$10 -> 14.00 | AS16: 14 | AT16: 1.30 | AU16: 78.00 | AV16: 56.00 | AW16: =((-1)*(($AV$28+'Males P'!$B$16)*$AV$27))+(($AV$27/$AV$26)*AU16) -> -4.00 | AX16: =((-1)*(($AV$28-'Males P'!$B$16)*$AV$27))+(($AV$27/$AV$26)*AU16) -> 116.00 | AY16: 60.00 | AZ16: 39.00 | BA16: 20.00 | BB16: 13.00 | BD16: 15 | BE16: 14.00 | BF16: 35.00 | BG16: 2.86 | BH16: 4.29 | BI16: 1.43 | BJ16: 0.2 | BK16: 2.3 | BL16: 15.0 | BM16: 9.3 | BN16: 6.7 | BO16: 4.1 | BP16: 0.0 | BQ16: 0.6 | BS16: 14 | BT16: 1.27 | BU16: 254.55 | BV16: 39.29 | BW16: 61.38 | BX16: 22.10 | BY16: 200.00 | BZ16: 123.8095238 | CA16: 50.00 | CB16: 30.95238095 | CD16: 15 | CE16: 14.00 | CF16: 3.50 | CG16: 4.46 | CH16: 6.46 | CI16: 2.46 | CJ16: 0.7 | CK16: 2 | CL16: 3.29 | CM16: 4.70 | CN16: 1.4 | CP16: 14 | CQ16: 1.30 | CR16: 1.95 | CS16: 6.63 | CT16: 1.95 | CU16: 8.15 | CV16: 1.95 | CW16: 5.11 | CX16: 1.50 | CY16: 5.20 | CZ16: 8.00 | DA16: 0.98 | DB16: 0.65 | DD16: 14 | DE16: 1.27 | DF16: 25.45 | DG16: 3.93 | DH16: 4.71 | DI16: 3.14 | DJ16: 20.00 | DK16: 13 | DL16: 5.00 | DM16: 3.25 | DO16: 14 | DP16: 1.27 | DQ16: 63.64 | DR16: 28.10 | DS16: 19.87 | DT16: 38.39 | DU16: 50.00 | DV16: 32.5 | DW16: 29.86 | DX16: 19.40896288 | DY16: 0.7 | DZ16: 10.00 | EA16: 62.04545455 | EB16: 15.00 | EC16: 30.3602994 | GD16: 0.60 | GE16: 12.00 | GF16: 0 | GG16: 3.46 | GH16: 4.90 | GI16: 6.00 | GJ16: 6.93 | GK16: 7.75 | GL16: 8.49 | GM16: 9.17 | GN16: 9.80 | GO16: 10.39 | GP16: 10.95 | GQ16: 11.49 | GR16: 12.00 | GS16: 12.49 | GT16: 12.96 | GU16: 13.42 | GV16: 13.86 | GW16: 14.28 | GX16: 14.70 | GY16: 15.10 | GZ16: 15.49
A17: 15 | B17: 0.70 | C17: 28.00 | D17: =('Sustitutos P'!$B$11*'Oculto P'!$C$27)-(('Oculto P'!$C$27/'Oculto P'!$C$26)*'Oculto P'!C17) -> 6.00 | E17: 42.00 | F17: =(('Sustitutos P'!$B$11+'Sustitutos P'!$B$15)*'Oculto P'!$C$27)-(('Oculto P'!$C$27/'Oculto P'!$C$26)*'Oculto P'!E17) -> 9.00 | G17: 14.00 | H17: =(('Sustitutos P'!$B$11-'Sustitutos P'!$B$15)*'Oculto P'!$C$27)-(('Oculto P'!$C$27/'Oculto P'!$C$26)*'Oculto P'!G17) -> 3.00 | I17: ='Sustitutos P'!$D$11 -> 40.00 | J17: 0.00 | K17: ='Sustitutos P'!$F$11 -> 0 | L17: 28.00 | N17: 15 | O17: 1.70 | P17: 8.20 | Q17: 16.00 | R17: 4.00 | S17: 32.80 | T17: 8.50 | U17: 20.00 | V17: 5.00 | W17: 34.00 | X17: 7.90 | Y17: 12.00 | Z17: 3.00 | AA17: 31.60 | AB17: 0.05 | AC17: 0.7 | AD17: 0.3 | AE17: 11.2 | AF17: 4.0 | AG17: 1.2 | AH17: 16.0 | AJ17: 15 | AK17: 1.40 | AL17: 14.00 | AM17: ='Neutrales P'!$C$10 -> 10.00 | AN17: ='Neutrales P'!$C$10+'Neutrales P'!$B$14 -> 15.00 | AO17: ='Neutrales P'!$C$10-'Neutrales P'!$B$14 -> 5.00 | AP17: 7.00 | AQ17: ='Neutrales P'!$D$10 -> 14.00 | AS17: 15 | AT17: 1.40 | AU17: 84.00 | AV17: 68.00 | AW17: =((-1)*(($AV$28+'Males P'!$B$16)*$AV$27))+(($AV$27/$AV$26)*AU17) -> 8.00 | AX17: =((-1)*(($AV$28-'Males P'!$B$16)*$AV$27))+(($AV$27/$AV$26)*AU17) -> 128.00 | AY17: 60.00 | AZ17: 42.00 | BA17: 20.00 | BB17: 14.00 | BD17: 16 | BE17: 15.00 | BF17: 37.50 | BG17: 2.67 | BH17: 4.00 | BI17: 1.33 | BJ17: 0.2 | BK17: 2.5 | BL17: 15.0 | BM17: 10.0 | BN17: 6.7 | BO17: 4.4 | BP17: 0.0 | BQ17: 0.7 | BS17: 15 | BT17: 1.36 | BU17: 272.73 | BV17: 36.67 | BW17: 57.29 | BX17: 20.63 | BY17: 200.00 | BZ17: 133.3333333 | CA17: 50.00 | CB17: 33.33333333 | CD17: 16 | CE17: 15.00 | CF17: 3.75 | CG17: 4.43 | CH17: 6.43 | CI17: 2.43 | CJ17: 0.75 | CK17: 2 | CL17: 3.52 | CM17: 4.70 | CN17: 1.5 | CP17: 15 | CQ17: 1.40 | CR17: 2.10 | CS17: 6.24 | CT17: 2.10 | CU17: 7.71 | CV17: 2.10 | CW17: 4.78 | CX17: 1.50 | CY17: 5.60 | CZ17: 8.00 | DA17: 1.05 | DB17: 0.7 | DD17: 15 | DE17: 1.36 | DF17: 27.27 | DG17: 3.67 | DH17: 4.40 | DI17: 2.93 | DJ17: 20.00 | DK17: 14 | DL17: 5.00 | DM17: 3.5 | DO17: 15 | DP17: 1.36 | DQ17: 68.18 | DR17: 27.66 | DS17: 19.70 | DT17: 37.59 | DU17: 50.00 | DV17: 35 | DW17: 29.86 | DX17: 20.90196002 | DY17: 0.7 | DZ17: 10.00 | EA17: 66.81818182 | EB17: 15.00 | EC17: 32.69570705 | GD17: 0.65 | GE17: 13.00 | GF17: 0 | GG17: 3.61 | GH17: 5.10 | GI17: 6.24 | GJ17: 7.21 | GK17: 8.06 | GL17: 8.83 | GM17: 9.54 | GN17: 10.20 | GO17: 10.82 | GP17: 11.40 | GQ17: 11.96 | GR17: 12.49 | GS17: 13.00 | GT17: 13.49 | GU17: 13.96 | GV17: 14.42 | GW17: 14.87 | GX17: 15.30 | GY17: 15.72 | GZ17: 16.12
A18: 16 | B18: 0.75 | C18: 30.00 | D18: =('Sustitutos P'!$B$11*'Oculto P'!$C$27)-(('Oculto P'!$C$27/'Oculto P'!$C$26)*'Oculto P'!C18) -> 5.00 | E18: 45.00 | F18: =(('Sustitutos P'!$B$11+'Sustitutos P'!$B$15)*'Oculto P'!$C$27)-(('Oculto P'!$C$27/'Oculto P'!$C$26)*'Oculto P'!E18) -> 7.50 | G18: 15.00 | H18: =(('Sustitutos P'!$B$11-'Sustitutos P'!$B$15)*'Oculto P'!$C$27)-(('Oculto P'!$C$27/'Oculto P'!$C$26)*'Oculto P'!G18) -> 2.50 | I18: ='Sustitutos P'!$D$11 -> 40.00 | J18: 0.00 | K18: ='Sustitutos P'!$F$11 -> 0 | L18: 30.00 | N18: 16 | O18: 1.75 | P18: 8.50 | Q18: 16.00 | R18: 4.00 | S18: 34.00 | T18: 8.75 | U18: 20.00 | V18: 5.00 | W18: 35.00 | X18: 8.25 | Y18: 12.00 | Z18: 3.00 | AA18: 33.00 | AB18: 0.05 | AC18: 0.75 | AD18: 0.25 | AE18: 12.0 | AF18: 4.0 | AG18: 1.0 | AH18: 16.0 | AJ18: 16 | AK18: 1.50 | AL18: 15.00 | AM18: ='Neutrales P'!$C$10 -> 10.00 | AN18: ='Neutrales P'!$C$10+'Neutrales P'!$B$14 -> 15.00 | AO18: ='Neutrales P'!$C$10-'Neutrales P'!$B$14 -> 5.00 | AP18: 7.50 | AQ18: ='Neutrales P'!$D$10 -> 14.00 | AS18: 16 | AT18: 1.50 | AU18: 90.00 | AV18: 80.00 | AW18: =((-1)*(($AV$28+'Males P'!$B$16)*$AV$27))+(($AV$27/$AV$26)*AU18) -> 20.00 | AX18: =((-1)*(($AV$28-'Males P'!$B$16)*$AV$27))+(($AV$27/$AV$26)*AU18) -> 140.00 | AY18: 60.00 | AZ18: 45.00 | BA18: 20.00 | BB18: 15.00 | BD18: 17 | BE18: 16.00 | BF18: 40.00 | BG18: 2.50 | BH18: 3.75 | BI18: 1.25 | BJ18: 0.2 | BK18: 2.7 | BL18: 15.0 | BM18: 10.7 | BN18: 6.7 | BO18: 4.8 | BP18: 0.0 | BQ18: 0.7 | BS18: 16 | BT18: 1.45 | BU18: 290.91 | BV18: 34.38 | BW18: 53.71 | BX18: 19.34 | BY18: 200.00 | BZ18: 142.8571429 | CA18: 50.00 | CB18: 35.71428571 | CD18: 17 | CE18: 16.00 | CF18: 4.00 | CG18: 4.40 | CH18: 6.40 | CI18: 2.40 | CJ18: 0.8 | CK18: 2 | CL18: 3.76 | CM18: 4.70 | CN18: 1.6 | CP18: 16 | CQ18: 1.50 | CR18: 2.25 | CS18: 5.88 | CT18: 2.25 | CU18: 7.29 | CV18: 2.25 | CW18: 4.47 | CX18: 1.50 | CY18: 6.00 | CZ18: 8.00 | DA18: 1.13 | DB18: 0.75 | DD18: 16 | DE18: 1.45 | DF18: 29.09 | DG18: 3.44 | DH18: 4.13 | DI18: 2.75 | DJ18: 20.00 | DK18: 15 | DL18: 5.00 | DM18: 3.75 | DO18: 16 | DP18: 1.45 | DQ18: 72.73 | DR18: 27.25 | DS18: 19.55 | DT18: 36.87 | DU18: 50.00 | DV18: 37.5 | DW18: 29.86 | DX18: 22.39495717 | DY18: 0.8 | DZ18: 10.00 | EA18: 71.59090909 | EB18: 15.00 | EC18: 35.0311147 | GD18: 0.70 | GE18: 14.00 | GF18: 0 | GG18: 3.74 | GH18: 5.29 | GI18: 6.48 | GJ18: 7.48 | GK18: 8.37 | GL18: 9.17 | GM18: 9.90 | GN18: 10.58 | GO18: 11.22 | GP18: 11.83 | GQ18: 12.41 | GR18: 12.96 | GS18: 13.49 | GT18: 14.00 | GU18: 14.49 | GV18: 14.97 | GW18: 15.43 | GX18: 15.87 | GY18: 16.31 | GZ18: 16.73
A19: 17 | B19: 0.80 | C19: 32.00 | D19: =('Sustitutos P'!$B$11*'Oculto P'!$C$27)-(('Oculto P'!$C$27/'Oculto P'!$C$26)*'Oculto P'!C19) -> 4.00 | E19: 48.00 | F19: =(('Sustitutos P'!$B$11+'Sustitutos P'!$B$15)*'Oculto P'!$C$27)-(('Oculto P'!$C$27/'Oculto P'!$C$26)*'Oculto P'!E19) -> 6.00 | G19: 16.00 | H19: =(('Sustitutos P'!$B$11-'Sustitutos P'!$B$15)*'Oculto P'!$C$27)-(('Oculto P'!$C$27/'Oculto P'!$C$26)*'Oculto P'!G19) -> 2.00 | I19: ='Sustitutos P'!$D$11 -> 40.00 | J19: 0.00 | K19: ='Sustitutos P'!$F$11 -> 0 | L19: 32.00 | N19: 17 | O19: 1.80 | P19: 8.80 | Q19: 16.00 | R19: 4.00 | S19: 35.20 | T19: 9.00 | U19: 20.00 | V19: 5.00 | W19: 36.00 | X19: 8.60 | Y19: 12.00 | Z19: 3.00 | AA19: 34.40 | AB19: 0.05 | AC19: 0.8 | AD19: 0.2 | AE19: 12.8 | AF19: 4.0 | AG19: 0.8 | AH19: 16.0 | AJ19: 17 | AK19: 1.60 | AL19: 16.00 | AM19: ='Neutrales P'!$C$10 -> 10.00 | AN19: ='Neutrales P'!$C$10+'Neutrales P'!$B$14 -> 15.00 | AO19: ='Neutrales P'!$C$10-'Neutrales P'!$B$14 -> 5.00 | AP19: 8.00 | AQ19: ='Neutrales P'!$D$10 -> 14.00 | AS19: 17 | AT19: 1.60 | AU19: 96.00 | AV19: 92.00 | AW19: =((-1)*(($AV$28+'Males P'!$B$16)*$AV$27))+(($AV$27/$AV$26)*AU19) -> 32.00 | AX19: =((-1)*(($AV$28-'Males P'!$B$16)*$AV$27))+(($AV$27/$AV$26)*AU19) -> 152.00 | AY19: 60.00 | AZ19: 48.00 | BA19: 20.00 | BB19: 16.00 | BD19: 18 | BE19: 17.00 | BF19: 42.50 | BG19: 2.35 | BH19: 3.53 | BI19: 1.18 | BJ19: 0.2 | BK19: 2.8 | BL19: 15.0 | BM19: 11.4 | BN19: 6.7 | BO19: 5.1 | BP19: 0.0 | BQ19: 0.8 | BS19: 17 | BT19: 1.55 | BU19: 309.09 | BV19: 32.35 | BW19: 50.55 | BX19: 18.20 | BY19: 200.00 | BZ19: 152.3809524 | CA19: 50.00 | CB19: 38.0952381 | CD19: 18 | CE19: 17.00 | CF19: 4.25 | CG19: 4.37 | CH19: 6.37 | CI19: 2.37 | CJ19: 0.85 | CK19: 2 | CL19: 3.99 | CM19: 4.70 | CN19: 1.7 | CP19: 17 | CQ19: 1.60 | CR19: 2.40 | CS19: 5.55 | CT19: 2.40 | CU19: 6.91 | CV19: 2.40 | CW19: 4.18 | CX19: 1.50 | CY19: 6.40 | CZ19: 8.00 | DA19: 1.20 | DB19: 0.8 | DD19: 17 | DE19: 1.55 | DF19: 30.91 | DG19: 3.24 | DH19: 3.88 | DI19: 2.59 | DJ19: 20.00 | DK19: 16 | DL19: 5.00 | DM19: 4 | DO19: 17 | DP19: 1.55 | DQ19: 77.27 | DR19: 26.89 | DS19: 19.42 | DT19: 36.22 | DU19: 50.00 | DV19: 40 | DW19: 29.86 | DX19: 23.88795431 | DY19: 0.8 | DZ19: 10.00 | EA19: 76.36363636 | EB19: 15.00 | EC19: 37.36652234 | GD19: 0.75 | GE19: 15.00 | GF19: 0 | GG19: 3.87 | GH19: 5.48 | GI19: 6.71 | GJ19: 7.75 | GK19: 8.66 | GL19: 9.49 | GM19: 10.25 | GN19: 10.95 | GO19: 11.62 | GP19: 12.25 | GQ19: 12.85 | GR19: 13.42 | GS19: 13.96 | GT19: 14.49 | GU19: =$GB$3*$GE19^$GB$5*GU$3^$GB$7 -> 15.00 | GV19: 15.49 | GW19: 15.97 | GX19: 16.43 | GY19: 16.88 | GZ19: 17.32
A20: 18 | B20: 0.85 | C20: 34.00 | D20: =('Sustitutos P'!$B$11*'Oculto P'!$C$27)-(('Oculto P'!$C$27/'Oculto P'!$C$26)*'Oculto P'!C20) -> 3.00 | E20: 51.00 | F20: =(('Sustitutos P'!$B$11+'Sustitutos P'!$B$15)*'Oculto P'!$C$27)-(('Oculto P'!$C$27/'Oculto P'!$C$26)*'Oculto P'!E20) -> 4.50 | G20: 17.00 | H20: =(('Sustitutos P'!$B$11-'Sustitutos P'!$B$15)*'Oculto P'!$C$27)-(('Oculto P'!$C$27/'Oculto P'!$C$26)*'Oculto P'!G20) -> 1.50 | I20: ='Sustitutos P'!$D$11 -> 40.00 | J20: 0.00 | K20: ='Sustitutos P'!$F$11 -> 0 | L20: 34.00 | N20: 18 | O20: 1.85 | P20: 9.10 | Q20: 16.00 | R20: 4.00 | S20: 36.40 | T20: 9.25 | U20: 20.00 | V20: 5.00 | W20: 37.00 | X20: 8.95 | Y20: 12.00 | Z20: 3.00 | AA20: 35.80 | AB20: 0.05 | AC20: 0.85 | AD20: 0.15 | AE20: 13.6 | AF20: 4.0 | AG20: 0.6 | AH20: 16.0 | AJ20: 18 | AK20: 1.70 | AL20: 17.00 | AM20: ='Neutrales P'!$C$10 -> 10.00 | AN20: ='Neutrales P'!$C$10+'Neutrales P'!$B$14 -> 15.00 | AO20: ='Neutrales P'!$C$10-'Neutrales P'!$B$14 -> 5.00 | AP20: 8.50 | AQ20: ='Neutrales P'!$D$10 -> 14.00 | AS20: 18 | AT20: 1.70 | AU20: 102.00 | AV20: 104.00 | AW20: =((-1)*(($AV$28+'Males P'!$B$16)*$AV$27))+(($AV$27/$AV$26)*AU20) -> 44.00 | AX20: =((-1)*(($AV$28-'Males P'!$B$16)*$AV$27))+(($AV$27/$AV$26)*AU20) -> 164.00 | AY20: 60.00 | AZ20: 51.00 | BA20: 20.00 | BB20: 17.00 | BD20: 19 | BE20: 18.00 | BF20: 45.00 | BG20: 2.22 | BH20: 3.33 | BI20: 1.11 | BJ20: 0.2 | BK20: 3.0 | BL20: 15.0 | BM20: 12.1 | BN20: 6.7 | BO20: 5.4 | BP20: 0.0 | BQ20: 0.8 | BS20: 18 | BT20: 1.64 | BU20: 327.27 | BV20: 30.56 | BW20: 47.74 | BX20: 17.19 | BY20: 200.00 | BZ20: 161.9047619 | CA20: 50.00 | CB20: 40.47619048 | CD20: 19 | CE20: 18.00 | CF20: 4.50 | CG20: 4.35 | CH20: 6.35 | CI20: 2.35 | CJ20: 0.9 | CK20: 2 | CL20: 4.23 | CM20: 4.70 | CN20: 1.8 | CP20: 18 | CQ20: 1.70 | CR20: 2.55 | CS20: 5.23 | CT20: 2.55 | CU20: 6.55 | CV20: 2.55 | CW20: 3.91 | CX20: 1.50 | CY20: 6.80 | CZ20: 8.00 | DA20: 1.28 | DB20: 0.85 | DD20: 18 | DE20: 1.64 | DF20: 32.73 | DG20: 3.06 | DH20: 3.67 | DI20: 2.44 | DJ20: 20.00 | DK20: 17 | DL20: 5.00 | DM20: 4.25 | DO20: 18 | DP20: 1.64 | DQ20: 81.82 | DR20: 26.56 | DS20: 19.30 | DT20: 35.64 | DU20: 50.00 | DV20: 42.5 | DW20: 29.86 | DX20: 25.38095146 | DY20: 0.9 | DZ20: 10.00 | EA20: 81.13636364 | EB20: 15.00 | EC20: 39.70192999 | GD20: 0.80 | GE20: 16.00 | GF20: =$GB$3*$GE20^$GB$5*GF$3^$GB$7 -> 0 | GG20: 4.00 | GH20: 5.66 | GI20: 6.93 | GJ20: 8.00 | GK20: 8.94 | GL20: 9.80 | GM20: 10.58 | GN20: 11.31 | GO20: 12.00 | GP20: 12.65 | GQ20: 13.27 | GR20: 13.86 | GS20: 14.42 | GT20: 14.97 | GU20: 15.49 | GV20: =$GB$3*$GE20^$GB$5*GV$3^$GB$7 -> 16.00 | GW20: 16.49 | GX20: 16.97 | GY20: 17.44 | GZ20: 17.89
A21: 19 | B21: 0.90 | C21: 36.00 | D21: =('Sustitutos P'!$B$11*'Oculto P'!$C$27)-(('Oculto P'!$C$27/'Oculto P'!$C$26)*'Oculto P'!C21) -> 2.00 | E21: 54.00 | F21: =(('Sustitutos P'!$B$11+'Sustitutos P'!$B$15)*'Oculto P'!$C$27)-(('Oculto P'!$C$27/'Oculto P'!$C$26)*'Oculto P'!E21) -> 3.00 | G21: 18.00 | H21: =(('Sustitutos P'!$B$11-'Sustitutos P'!$B$15)*'Oculto P'!$C$27)-(('Oculto P'!$C$27/'Oculto P'!$C$26)*'Oculto P'!G21) -> 1.00 | I21: ='Sustitutos P'!$D$11 -> 40.00 | J21: 0.00 | K21: ='Sustitutos P'!$F$11 -> 0 | L21: 36.00 | N21: 19 | O21: 1.90 | P21: 9.40 | Q21: 16.00 | R21: 4.00 | S21: 37.60 | T21: 9.50 | U21: 20.00 | V21: 5.00 | W21: 38.00 | X21: 9.30 | Y21: 12.00 | Z21: 3.00 | AA21: 37.20 | AB21: 0.05 | AC21: 0.9 | AD21: 0.1 | AE21: 14.4 | AF21: 4.0 | AG21: 0.4 | AH21: 16.0 | AJ21: 19 | AK21: 1.80 | AL21: 18.00 | AM21: ='Neutrales P'!$C$10 -> 10.00 | AN21: ='Neutrales P'!$C$10+'Neutrales P'!$B$14 -> 15.00 | AO21: ='Neutrales P'!$C$10-'Neutrales P'!$B$14 -> 5.00 | AP21: 9.00 | AQ21: ='Neutrales P'!$D$10 -> 14.00 | AS21: 19 | AT21: 1.80 | AU21: 108.00 | AV21: 116.00 | AW21: =((-1)*(($AV$28+'Males P'!$B$16)*$AV$27))+(($AV$27/$AV$26)*AU21) -> 56.00 | AX21: =((-1)*(($AV$28-'Males P'!$B$16)*$AV$27))+(($AV$27/$AV$26)*AU21) -> 176.00 | AY21: 60.00 | AZ21: 54.00 | BA21: 20.00 | BB21: 18.00 | BD21: 20 | BE21: 19.00 | BF21: 47.50 | BG21: 2.11 | BH21: 3.16 | BI21: 1.05 | BJ21: 0.2 | BK21: 3.2 | BL21: 15.0 | BM21: 12.9 | BN21: 6.7 | BO21: 5.7 | BP21: 0.0 | BQ21: 0.9 | BS21: 19 | BT21: 1.73 | BU21: 345.45 | BV21: 28.95 | BW21: 45.23 | BX21: 16.28 | BY21: 200.00 | BZ21: 171.4285714 | CA21: 50.00 | CB21: 42.85714286 | CD21: 20 | CE21: 19.00 | CF21: 4.75 | CG21: 4.32 | CH21: 6.32 | CI21: 2.32 | CJ21: 0.95 | CK21: 2 | CL21: 4.46 | CM21: 4.70 | CN21: 1.9 | CP21: 19 | CQ21: 1.80 | CR21: 2.70 | CS21: 4.94 | CT21: 2.70 | CU21: 6.21 | CV21: 2.70 | CW21: 3.66 | CX21: 1.50 | CY21: 7.20 | CZ21: 8.00 | DA21: 1.35 | DB21: 0.9 | DD21: 19 | DE21: 1.73 | DF21: 34.55 | DG21: 2.89 | DH21: 3.47 | DI21: 2.32 | DJ21: 20.00 | DK21: 18 | DL21: 5.00 | DM21: 4.5 | DO21: 19 | DP21: 1.73 | DQ21: 86.36 | DR21: 26.26 | DS21: 19.18 | DT21: 35.10 | DU21: 50.00 | DV21: 45 | DW21: 29.86 | DX21: 26.8739486 | DY21: 0.9 | DZ21: 10.00 | EA21: 85.90909091 | EB21: 15.00 | EC21: 42.03733764 | GD21: 0.85 | GE21: 17.00 | GF21: 0 | GG21: 4.12 | GH21: 5.83 | GI21: 7.14 | GJ21: 8.25 | GK21: 9.22 | GL21: 10.10 | GM21: 10.91 | GN21: 11.66 | GO21: 12.37 | GP21: 13.04 | GQ21: 13.67 | GR21: 14.28 | GS21: 14.87 | GT21: 15.43 | GU21: 15.97 | GV21: 16.49 | GW21: 17.00 | GX21: 17.49 | GY21: 17.97 | GZ21: 18.44
A22: 20 | B22: 0.95 | C22: 38.00 | D22: =('Sustitutos P'!$B$11*'Oculto P'!$C$27)-(('Oculto P'!$C$27/'Oculto P'!$C$26)*'Oculto P'!C22) -> 1.00 | E22: 57.00 | F22: =(('Sustitutos P'!$B$11+'Sustitutos P'!$B$15)*'Oculto P'!$C$27)-(('Oculto P'!$C$27/'Oculto P'!$C$26)*'Oculto P'!E22) -> 1.50 | G22: 19.00 | H22: =(('Sustitutos P'!$B$11-'Sustitutos P'!$B$15)*'Oculto P'!$C$27)-(('Oculto P'!$C$27/'Oculto P'!$C$26)*'Oculto P'!G22) -> 0.50 | I22: ='Sustitutos P'!$D$11 -> 40.00 | J22: 0.00 | K22: ='Sustitutos P'!$F$11 -> 0 | L22: 38.00 | N22: 20 | O22: 1.95 | P22: 9.70 | Q22: 16.00 | R22: 4.00 | S22: 38.80 | T22: 9.75 | U22: 20.00 | V22: 5.00 | W22: 39.00 | X22: 9.65 | Y22: 12.00 | Z22: 3.00 | AA22: 38.60 | AB22: 0.05 | AC22: 0.95 | AD22: 0.05 | AE22: 15.2 | AF22: 4.0 | AG22: 0.2 | AH22: 16.0 | AJ22: 20 | AK22: 1.90 | AL22: 19.00 | AM22: ='Neutrales P'!$C$10 -> 10.00 | AN22: ='Neutrales P'!$C$10+'Neutrales P'!$B$14 -> 15.00 | AO22: ='Neutrales P'!$C$10-'Neutrales P'!$B$14 -> 5.00 | AP22: 9.50 | AQ22: ='Neutrales P'!$D$10 -> 14.00 | AS22: 20 | AT22: 1.90 | AU22: 114.00 | AV22: 128.00 | AW22: =((-1)*(($AV$28+'Males P'!$B$16)*$AV$27))+(($AV$27/$AV$26)*AU22) -> 68.00 | AX22: =((-1)*(($AV$28-'Males P'!$B$16)*$AV$27))+(($AV$27/$AV$26)*AU22) -> 188.00 | AY22: 60.00 | AZ22: 57.00 | BA22: 20.00 | BB22: 19.00 | BD22: 21 | BE22: 20.00 | BF22: 50.00 | BG22: 2.00 | BH22: 3.00 | BI22: 1.00 | BJ22: 0.2 | BK22: 3.3 | BL22: 15.0 | BM22: 13.6 | BN22: 6.7 | BO22: 6.0 | BP22: 0.0 | BQ22: 0.9 | BS22: 20 | BT22: 1.82 | BU22: 363.64 | BV22: 27.50 | BW22: 42.97 | BX22: 15.47 | BY22: 200.00 | BZ22: 180.952381 | CA22: 50.00 | CB22: 45.23809524 | CD22: 21 | CE22: 20.00 | CF22: 5.00 | CG22: 4.30 | CH22: 6.30 | CI22: 2.30 | CJ22: 1 | CK22: 2 | CL22: 4.70 | CM22: 4.70 | CN22: 2 | CP22: 20 | CQ22: 1.90 | CR22: 2.85 | CS22: 4.66 | CT22: 2.85 | CU22: 5.90 | CV22: 2.85 | CW22: 3.42 | CX22: 1.50 | CY22: 7.60 | CZ22: 8.00 | DA22: 1.43 | DB22: 0.95 | DD22: 20 | DE22: 1.82 | DF22: 36.36 | DG22: 2.75 | DH22: 3.30 | DI22: 2.20 | DJ22: 20.00 | DK22: 19 | DL22: 5.00 | DM22: 4.75 | DO22: 20 | DP22: 1.82 | DQ22: 90.91 | DR22: 25.99 | DS22: 19.08 | DT22: 34.61 | DU22: 50.00 | DV22: 47.5 | DW22: 29.86 | DX22: 28.36694575 | DY22: 1.0 | DZ22: 10.00 | EA22: 90.68181818 | EB22: 15.00 | EC22: 44.37274528 | GD22: 0.90 | GE22: 18.00 | GF22: 0 | GG22: 4.24 | GH22: 6.00 | GI22: 7.35 | GJ22: 8.49 | GK22: 9.49 | GL22: 10.39 | GM22: 11.22 | GN22: 12.00 | GO22: 12.73 | GP22: 13.42 | GQ22: 14.07 | GR22: 14.70 | GS22: 15.30 | GT22: 15.87 | GU22: 16.43 | GV22: 16.97 | GW22: 17.49 | GX22: 18.00 | GY22: 18.49 | GZ22: 18.97
A23: 21 | B23: 1.00 | C23: 40.00 | D23: =('Sustitutos P'!$B$11*'Oculto P'!$C$27)-(('Oculto P'!$C$27/'Oculto P'!$C$26)*'Oculto P'!C23) -> 0 | E23: 60.00 | F23: =(('Sustitutos P'!$B$11+'Sustitutos P'!$B$15)*'Oculto P'!$C$27)-(('Oculto P'!$C$27/'Oculto P'!$C$26)*'Oculto P'!E23) -> 0 | G23: 20.00 | H23: =(('Sustitutos P'!$B$11-'Sustitutos P'!$B$15)*'Oculto P'!$C$27)-(('Oculto P'!$C$27/'Oculto P'!$C$26)*'Oculto P'!G23) -> 0 | I23: ='Sustitutos P'!$D$11 -> 40.00 | J23: 0.00 | K23: ='Sustitutos P'!$F$11 -> 0 | L23: 40.00 | N23: 21 | O23: 2.00 | P23: 10.00 | Q23: 16.00 | R23: 4.00 | S23: 40.00 | T23: 10.00 | U23: 20.00 | V23: 5.00 | W23: 40.00 | X23: 10.00 | Y23: 12.00 | Z23: 3.00 | AA23: 40.00 | AB23: 0.05 | AC23: 1 | AD23: 0 | AE23: 16.0 | AF23: 4.0 | AG23: 0 | AH23: 16.0 | AJ23: 21 | AK23: 2.00 | AL23: 20.00 | AM23: ='Neutrales P'!$C$10 -> 10.00 | AN23: ='Neutrales P'!$C$10+'Neutrales P'!$B$14 -> 15.00 | AO23: ='Neutrales P'!$C$10-'Neutrales P'!$B$14 -> 5.00 | AP23: 10.00 | AQ23: ='Neutrales P'!$D$10 -> 14.00 | AS23: 21 | AT23: 2.00 | AU23: =($AV$24)*AT23 -> 120.00 | AV23: 140.00 | AW23: =((-1)*(($AV$28+'Males P'!$B$16)*$AV$27))+(($AV$27/$AV$26)*AU23) -> 80.00 | AX23: =((-1)*(($AV$28-'Males P'!$B$16)*$AV$27))+(($AV$27/$AV$26)*AU23) -> 200.00 | AY23: 60.00 | AZ23: 60.00 | BA23: 20.00 | BB23: 20.00 | BP23: 0.0 | BQ23: 1.0 | BS23: 21 | BT23: 1.91 | BU23: 381.82 | BV23: 26.19 | BW23: 40.92 | BX23: 14.73 | BY23: 200.00 | BZ23: 200 | CA23: 50.00 | CB23: 50 | CP23: 21 | CQ23: 2.00 | CR23: 3.00 | CS23: 4.40 | CT23: 3.00 | CU23: 5.60 | CV23: 3.00 | CW23: 3.20 | CX23: 1.50 | CY23: 8.00 | CZ23: 8.00 | DA23: 1.50 | DB23: 1 | DD23: 21 | DE23: 1.91 | DF23: 38.18 | DG23: 2.62 | DH23: 3.14 | DI23: 2.10 | DJ23: 20.00 | DK23: 20 | DL23: 5.00 | DM23: 5 | DO23: 21 | DP23: 1.91 | DQ23: 95.45 | DR23: =((DT$28/(($DQ23+DR$28)^(DR$27)))^(1/DT$27))-$DR$29 -> 25.73 | DS23: =(((DT$28-DT$29)/(($DQ23+DR$28)^(DR$27)))^(1/DT$27))-$DR$29 -> 18.99 | DT23: =(((DT$28+DT$29)/(($DQ23+DR$28)^(DR$27)))^(1/DT$27))-$DR$29 -> 34.16 | DU23: 50.00 | DV23: =DU23*DY23 -> 50 | DW23: 29.86 | DX23: =DW23*DY23 -> 29.85994289 | DY23: 1.00 | DZ23: 10.00 | EA23: 95.45454545 | EB23: 15.00 | EC23: 46.70815293 | GD23: 0.95 | GE23: 19.00 | GF23: 0 | GG23: 4.36 | GH23: 6.16 | GI23: 7.55 | GJ23: 8.72 | GK23: 9.75 | GL23: 10.68 | GM23: 11.53 | GN23: 12.33 | GO23: 13.08 | GP23: 13.78 | GQ23: 14.46 | GR23: 15.10 | GS23: 15.72 | GT23: 16.31 | GU23: 16.88 | GV23: 17.44 | GW23: 17.97 | GX23: 18.49 | GY23: 19.00 | GZ23: 19.49
P24: =$R$38*O23 -> 8 | S24: =$T$38*O23 -> 32.00 | X24: =$S$45*O23 -> 6.00 | AA24: =$T$45*O23 -> 24.00 | AU24: x1 | AV24: ='Males P'!D12 -> 60.00 | BE24: k | BF24: ='Regulares P'!B12 -> 100 | BG24: Dk | BH24: ='Regulares P'!B16 -> 50 | CE24: k | CF24: ='Cuasilineales P'!B12 -> 5 | GD24: =GD23+$HA$3 -> 1.00 | GE24: =$GB$6*GD24 -> 20.00 | GF24: 0 | GG24: 4.47 | GH24: 6.32 | GI24: 7.75 | GJ24: 8.94 | GK24: 10.00 | GL24: 10.95 | GM24: 11.83 | GN24: 12.65 | GO24: 13.42 | GP24: 14.14 | GQ24: 14.83 | GR24: 15.49 | GS24: 16.12 | GT24: 16.73 | GU24: 17.32 | GV24: 17.89 | GW24: =$GB$3*$GE24^$GB$5*GW$3^$GB$7 -> 18.44 | GX24: =$GB$3*$GE24^$GB$5*GX$3^$GB$7 -> 18.97 | GY24: =$GB$3*$GE24^$GB$5*GY$3^$GB$7 -> 19.49 | GZ24: =$GB$3*$GE24^$GB$5*GZ$3^$GB$7 -> 20.00
B25: ='Sustitutos P'!B11/'Sustitutos P'!C11 -> 10 | C25: =('Sustitutos P'!B11+'Sustitutos P'!B15)/'Sustitutos P'!C11 -> 15 | P25: =(T23-P3)/20 -> 0.30 | S25: =(W23-S3)/20 -> 1.20 | X25: =(T23-X3)/20 -> 0.35 | AA25: =(W23-AA3)/20 -> 1.40 | AU25: x2 | AV25: ='Males P'!F12 -> 20.00 | BE25: a | BF25: ='Regulares P'!C12 -> 1 | BG25: b | BH25: ='Regulares P'!E12 -> 1 | CE25: Dk | CF25: ='Cuasilineales P'!B16 -> 2 | CQ25: ='Sustitutos P'!CM11/'Sustitutos P'!CN11 ->  | CR25: =('Sustitutos P'!CM11+'Sustitutos P'!CM15)/'Sustitutos P'!CN11 -> 
B26: a | C26: ='Sustitutos P'!C11 -> 2 | AU26: a | AV26: ='Males P'!C12 -> 1 | AZ26: =((-1)*(AV28/AV27))+((AV26/AV27)*AY3) -> 5.00 | BE26: x1 | BF26: ='Regulares P'!D12 -> 15 | BG26: x2 | BH26: =BF24/(BF25*BH25*BF26) -> 6.666666667 | BU26: x1 | BV26: ='Cobb-Douglas P'!C13 -> 200.00 | BW26: x2 | BX26: =(BX28/(BV26^(BV27)))^(1/BX27) -> 50.00 | CE26: x1 | CF26: ='Cuasilineales P'!C12 -> 2 | CQ26: a | CR26: ='CES P'!D11 -> 2 | DF26: x1 | DG26: ='Cobb-DouglasD1 P'!C13 -> 20.00 | DH26: x2 | DI26: =(DI28/(DG26^(DG27)))^(1/DI27) -> 5.00 | DQ26: x1 | DR26: ='Stone-Geary P'!C13 -> 50.00 | DS26: x2 | DT26: =((DT28/((DR26+DR28)^(DR27)))^(1/DT27))-DR29 -> 29.86
B27: b | C27: ='Sustitutos P'!E11 -> 1 | G27: =E33*B33 -> 20 | H27: =E33/C33 -> 0.5 | I27: =D33 -> 40.0 | AU27: b | AV27: ='Males P'!E12 -> 2 | BU27: a | BV27: ='Cobb-Douglas P'!D13 -> 0.50 | BW27: b | BX27: =1-BV27 -> 0.50 | CE27: x2 | CF27: =CF24-(LOG(CF26)) -> 4.70 | CQ27: b | CR27: ='CES P'!F11 -> 4 | DF27: a | DG27: ='Cobb-DouglasD1 P'!D13 -> 1.00 | DH27: b | DI27: ='Cobb-DouglasD1 P'!F13 -> 1.00 | DQ27: a | DR27: ='Stone-Geary P'!D13 -> 0.30 | DS27: b | DT27: =1-DR27 -> 0.70 | DV27: =((DR27*(DT26+DR29))/(DT27*(DR26+DR29)))*-1 -> -0.18
B28: RmgS | C28: =C27/C26*-1 -> -0.50 | Q28: =(Q13-Q12)/(P13-P12) -> 0 | S28: x1/a | T28: =S34/R34 -> 4 | AL28: =(AM13-AM12)/(AL13-AL12) -> 0 | AU28: k | AV28: ='Males P'!B12 -> 50 | BF28: =(BH26/BF26)*-1 -> -0.44 | BG28: =BF3 -> 2.50 | BH28: =(BG4-BG3)/(BF4-BF3) -> -8.00 | BW28: k | BX28: ='Cobb-Douglas P'!B13 -> 100.00 | CQ28: x1 | CR28: ='CES P'!C11 -> 1.5 | DH28: k | DI28: ='Cobb-DouglasD1 P'!B13 -> 100.00 | DQ28: s1 | DR28: ='Stone-Geary P'!E15 -> (10.00) | DS28: k | DT28: ='Stone-Geary P'!B13 -> 20.00
Q29: =(P13-P12)/(Q12-Q13) ->  | S29: x2/b | T29: =U34/T34 -> 4 | AL29: =1/AL28 ->  | AU29: =AV27/AV26 -> 2.00 | BG29: =BF4 -> 5.00 | BH29: -2.67 | BU29: =((BV27*BX26)/(BX27*BV26))*-1 -> -0.25 | BW29: Dk | BX29: ='Cobb-Douglas P'!B17 -> 25.00 | CE29: =1/CF26+-1 -> -0.5 | CQ29: x2 | CR29: =($CR$30+(($CR$26*$CR$27)*-1)+(($CR$27*CR28)*-1))/($CR$28+CR26) -> 8 | DF29: =((DG27*DI26)/(DI27*DG26))*-1 -> -0.25 | DH29: Dk | DI29: ='Cobb-DouglasD1 P'!B17 -> 20.00 | DQ29: s2 | DR29: ='Stone-Geary P'!F15 -> (15.00) | DS29: Dk | DT29: ='Stone-Geary P'!B17 -> 10.00
C30: =('Sustitutos P'!B11*'Sustitutos P'!E11)-(('Sustitutos P'!E11/'Sustitutos P'!C11)*'Sustitutos P'!D11) -> 0 | S30: min | T30: =MIN(T28:T29) -> 4 | BG30: 7.50 | BH30: -1.33 | CQ30: k | CR30: ='CES P'!$B$11 -> 42
BG31: 10.00 | BH31: -0.80 | CQ31: D k | CR31: ='CES P'!B15 -> 6
B32: Nivel | C32: a | D32: x1 | E32: b | F32: x2 | BG32: 12.50 | BH32: -0.53
B33: ='Sustitutos P'!B11 -> 20.0 | C33: ='Sustitutos P'!C11 -> 2.0 | D33: ='Sustitutos P'!D11 -> 40.0 | E33: ='Sustitutos P'!E11 -> 1.0 | F33: ='Oculto P'!C52 -> 0.0 | Q33: Nivel | R33: a | S33: x1 | T33: b | U33: x2 | BG33: 15.00 | BH33: -0.38 | CQ33: RmgS | CR33: =((CR29+CR27)/(CR28+CR26))*-1 -> -3.43
B34: Inserte los valores correspondientes de la curva u1 (original) | Q34: =MIN(S34,U34) -> 4.0 | R34: ='Complementarios P'!C11 -> 1.0 | S34: ='Complementarios P'!D11 -> 4.0 | T34: ='Complementarios P'!E11 -> 4.0 | U34: ='Complementarios P'!F11 -> 16.0 | BG34: 17.50 | BH34: -0.29
S35: =S34/R34 -> 4 | T35: =U34/T34 -> 4 | BG35: 20.00 | BH35: -0.22
B36: Cambio de nivel | BG36: 22.50 | BH36: -0.18
B37: ='Sustitutos P'!B15:C15 -> 10.0 | S37: a/1 | T37: b/2 | BG37: 25.00 | BH37: -0.15
Q38: min | R38: =MIN(S35:T35) -> 4.0 | S38: =R38*R34 -> 4.0 | T38: =R38*T34 -> 16.0 | BG38: 27.50 | BH38: -0.12
BG39: 30.00 | BH39: -0.10
Q40: Cambio de Nivel | BG40: 32.50 | BH40: -0.09 | DO40: =(10-3)^(0.5) -> 2.645751311
Q41: ='Complementarios P'!B17 -> 1.0 | BG41: 35.00 | BH41: -0.08 | DO41: =(10^(0.5))-(3^(0.5)) -> 1.430226853
BG42: 37.50 | BH42: -0.07
S43: ax1 | T43: bx2 | BG43: 40.00 | BH43: -0.06
Q44: min | R44: =R38+Q41 -> 5.0 | S44: =R44*R34 -> 5.0 | T44: =R44*T34 -> 20.0 | BG44: 42.50 | BH44: -0.05
Q45: min | R45: =R38-Q41 -> 3.0 | S45: =R45*R34 -> 3.0 | T45: =R45*T34 -> 12.0 | BG45: 45.00 | BH45: -0.05
BG46: 47.50 | BH46: -0.04
BG47: 50.00 | BH47: 0.04

Sheet Stone-Geary P (hidden)
A1: CURVAS DE INDIFERENCIA
A3: STONE-GEARY
B12: Nivel | C12: x1 | D12: a | E12: x2 | F12: 1-a
B13: 20.0 | C13: 50.0 | D13: 0.3 | E13: ='Oculto P'!DT26 -> 29.9 | F13: ='Oculto P'!DT27 -> 0.7
B14: Inserte los valores correspondientes | E14: s1 | F14: s2
B15: de la curva u1 (original) | E15: -10.0 | F15: -15.0
B16: Cambio de nivel
B17: 10.0
B18: Inserte el nivel de las curvas de indiferencia en rosa y rojo
B20: Relación marginal de sustitución
B21: ='Oculto P'!DV27 -> -0.2
